Cogmind - Beta 16 @@@ ROGUE MODE // 2026.01.15 @ 20:59:09 Player: Bikerider58 Result: Destroyed by Executioner with Helical Railgun Performance ------------- Evolutions (6) 3000 Regions Visited (31) 6200 Robots Destroyed (351) 1755 Value Destroyed (15624) 15624 Prototype IDs (83) 1660 Alien Tech Used (1) 200 Bonus (12004) 12004 TOTAL SCORE: 40443 Bonus ------- High Alert Combat Kills 697 Follower Combat Kills 1390 Entered Garrisons 400 Network Hubs Disabled 600 Aligned with FarCom 300 Met Data Miner 300 Destroyed Z-Imprinter 1000 Triggered Deep Caves Wall 500 Exposed GOLEM Chamber 500 Acquired ECA 300 Met Warlord at Base 500 MAIN.C Attacked Warlord 500 Warlord Defense Kills 4686 Built Enhanced Grunts 300 A7 Reached Mainframe 300 Met R17 at Cetus 500 Friendly Fire -769 Cogmind --------- Core Integrity 0/1150 Matter 145/300 Energy 98/100 System Corruption 2% Temperature Cool (0) Movement Core (50) Location -4/Warlord Parts ------- > --- POWER (2) -------- (None) > --- PROPULSION (5) --- (None) > --- UTILITY (9) ------ (None) > --- WEAPON (4) ------- (None) > --- INVENTORY (5) ---- Myomer Leg Experimental Cooling System Zionite Biocell (600) GOLEM Unit Peak State ------------ > --- POWER ------------ Cooled Fission Core Quantum Reactor > --- PROPULSION ------- Biometal Leg Biometal Leg Enhanced Biometal Leg Assembled Alloy Leg Assembled Alloy Leg > --- UTILITY ---------- Experimental Heat Sink Large Storage Unit Assembled Biocell Array Experimental Optical Array Assembled Combat Suite Advanced Kinecellerator Graphene Brace GOLEM Unit > --- WEAPON ----------- Assembled Focal Cannon Assembled Focal Cannon Heavy Autocannon > --- INVENTORY -------- Myomer Leg Experimental Cooling System Zionite Biocell Experimental Targeting Computer Advanced Particle Charger Centrium Medium Armor Plating Experimental Thermal Shield Hacking Drone Bay GOLEM Unit Vortex Shotgun Vortex Shotgun Chain Missile Launcher Field Lobotomy Kit [Rating: 170] Favorites ----------- Power Zionite Light DM Reactor Engine Light Ion Engine Power Core Micro Nuclear Core Reactor Zionite Light DM Reactor Propulsion Assembled Alloy Leg Treads Light Treads Leg Assembled Alloy Leg Wheel Wheel Hover Unit Zionite Glidesys I Flight Unit Improved Flight Unit Utility Assembled Biocell Array Device Experimental Heat Sink Storage Assembled Biocell Array Processor Improved Targeting Computer Hackware Hacking Suite Protection Assembled Alloy Armor Weapon Assembled Focal Cannon Energy Gun Medium Laser Energy Cannon Assembled Focal Cannon Ballistic Gun Assault Rifle Ballistic Cannon Magnetic Acceleration Cannon Launcher Heavy Rocket Launcher Special Weapon Mining Laser Impact Weapon Heavy Mace Slashing Weapon Great Axe Piercing Weapon Makeshift Spear Special Melee Weapon Datajack Build | -11 -10 -10 -9 -9 -9 -8 -8 -8 -8 -7 -7 -7 -7 -7 -7 -7 -6 -6 -6 -6 -6 -5 -5 -5 -5 -5 -5 -4 -4 -4 -4 ------- Run | Yrd Mat Min Mat Min Exi Min Mat Gar Mat Fac Gar Fac Low Low Zio Dee Pro Fac Low Low Dat Pro Fac Ext Cet Arc Hub Fac Upp Upp War Slots Evolved 12 | . . . 2 . . . 2 . . 2 . . . . . . . 2 . . . . 2 . . . . 2 . . . Power 1 | . . . . . . . . . . . . . . . . . . 1 . . . . . . . . . . . . . Propulsion 2 | . . . . . . . 1 . . 1 . . . . . . . . . . . . . . . . . . . . . Utility 7 | . . . 1 . . . 1 . . . . . . . . . . 1 . . . . 2 . . . . 2 . . . Weapon 2 | . . . 1 . . . . . . 1 . . . . . . . . . . . . . . . . . . . . . Parts Attached 240 | 7 9 1 21 9 . . 16 10 20 11 19 4 4 4 2 24 . 20 1 4 . 4 5 4 2 . 7 4 1 1 26 Power 28 | 1 2 . 2 3 . . 1 1 2 1 1 . . . . 4 . 5 . 1 . . . . . . . . . . 4 Engine 11 | 1 2 . . 2 . . . 1 2 . . . . . . . . 3 . . . . . . . . . . . . . Core 7 | . . . 2 1 . . 1 . . 1 . . . . . . . 1 . . . . . . . . . . . . 1 Reactor 10 | . . . . . . . . . . . 1 . . . . 4 . 1 . 1 . . . . . . . . . . 3 Propulsion 54 | 2 2 . 7 1 . . 4 1 4 3 8 . . . 1 4 . 1 . 1 . 2 . 2 . . 2 . . 1 8 Treads 17 | 2 . . 5 1 . . 4 1 4 . . . . . . . . . . . . . . . . . . . . . . Leg 28 | . . . . . . . . . . . 7 . . . 1 3 . 1 . 1 . 2 . 2 . . 2 . . 1 8 Wheel 3 | . 2 . 1 . . . . . . . . . . . . . . . . . . . . . . . . . . . . Hover 1 | . . . . . . . . . . . . . . . . 1 . . . . . . . . . . . . . . . Flight 5 | . . . 1 . . . . . . 3 1 . . . . . . . . . . . . . . . . . . . . Utility 85 | 2 2 1 4 1 . . 7 3 7 4 5 2 . 1 . 12 . 11 . 1 . 1 3 . 1 . 4 4 1 . 8 Device 46 | 1 1 . 3 . . . 3 2 2 1 4 . . 1 . 5 . 6 . 1 . 1 3 . . . 3 4 . . 5 Storage 8 | 1 1 1 . . . . . . . . 1 . . . . 1 . 2 . . . . . . . . 1 . . . . Processor 10 | . . . . . . . 2 . 1 1 . . . . . . . 3 . . . . . . . . . . . . 3 Hackware 2 | . . . . . . . . . . 2 . . . . . . . . . . . . . . . . . . . . . Protection 19 | . . . 1 1 . . 2 1 4 . . 2 . . . 6 . . . . . . . . 1 . . . 1 . . Artifact . | . . . . . . . . . . . . . . . . . . . . . . . . . . . . . . . . Weapon 73 | 2 3 . 8 4 . . 4 5 7 3 5 2 4 3 1 4 . 3 1 1 . 1 2 2 1 . 1 . . . 6 Energy Gun 18 | 2 . . 2 . . . . 2 . . . . 1 1 1 3 . 2 . 1 . . 1 . 1 . . . . . 1 Energy Cannon 11 | . . . 1 . . . . . 1 . . 1 1 2 . . . 1 . . . . 1 1 . . 1 . . . 1 Ballistic Gun 27 | . 1 . 4 2 . . 4 3 6 . 5 1 1 . . . . . . . . . . . . . . . . . . Ballistic Cannon 4 | . . . 1 . . . . . . . . . . . . . . . 1 . . . . . . . . . . . 2 Launcher 5 | . . . . 2 . . . . . . . . 1 . . . . . . . . . . 1 . . . . . . 1 Special Weapon 2 | . 1 . . . . . . . . . . . . . . . . . . . . . . . . . . . . . 1 Impact Weapon 1 | . . . . . . . . . . . . . . . . 1 . . . . . . . . . . . . . . . Slashing Weapon 2 | . . . . . . . . . . 2 . . . . . . . . . . . . . . . . . . . . . Piercing Weapon 1 | . . . . . . . . . . . . . . . . . . . . . . 1 . . . . . . . . . Special Melee Weapon 2 | . 1 . . . . . . . . 1 . . . . . . . . . . . . . . . . . . . . . Unidentified Prototypes 36 | . . . 3 . . . 1 . . . 1 1 . . 1 11 . . . 1 . . . . 2 . 2 . . . 13 Corrupted Parts 2 | . . . . . . . . . . . . . . . . 1 . . . . . . . . . . . . . . 1 System Corruption 2 | . . . . . . . . . . . . . . . . 1 . . . . . . . . . . . . . . 1 Parts Lost 56 | . 1 . 3 2 . . 3 3 4 . 1 1 . 2 . 11 . 7 . . . . . . . . . . . . 18 Power 10 | . 1 . . 2 . . . . 1 . . . . . . 2 . 2 . . . . . . . . . . . . 2 Propulsion 13 | . . . . . . . . . . . 1 . . . . 5 . . . . . . . . . . . . . . 7 Utility 16 | . . . 1 . . . 1 3 2 . . . . . . 4 . 2 . . . . . . . . . . . . 3 Weapon 17 | . . . 2 . . . 2 . 1 . . 1 . 2 . . . 3 . . . . . . . . . . . . 6 Highest Loss Streak 10 | . 1 . 2 1 . . 1 2 3 . 1 1 . 2 . 3 . 3 . . . . . . . . . . . . 10 To Critical Strikes 2 | . . . 1 . . . . . . . . . . . . . . . . . . . . . . . . . . . 1 Average Backups 14 | 2 13 25 24 24 25 25 24 24 24 5 6 9 10 9 10 6 8 7 11 12 13 12 13 13 13 14 13 13 14 13 13 Power . | . 1 2 1 . 1 1 1 . 1 . . 1 1 1 1 . 1 . . . 1 1 . 1 . 1 1 1 1 . . Propulsion 2 | . 2 5 7 7 7 7 7 9 8 1 . 1 1 1 1 . . . 1 1 1 . . . . . . . . . 1 Utility 6 | . 3 7 7 8 9 9 7 6 7 1 2 3 3 3 3 3 6 5 7 9 9 8 9 10 11 11 10 10 11 10 9 Weapon 3 | 1 5 10 8 7 5 5 4 5 4 1 2 3 4 3 3 1 . . . 1 1 1 1 1 1 1 1 1 1 . 1 Tool/Special . | . . . . . . . . . . . . . . . . . . . . . . . . . . . . . . . . Unused Backups 61 | . 2 . 13 4 1 . 7 1 . 12 . 1 . . 2 . . 1 . . . . 2 2 4 . 1 . . 1 7 Power 7 | . . . 2 . . . 1 1 . . . . . . . . . . . . . . . . 2 . . . . . 1 Propulsion 17 | . . . 4 1 . . 4 . . 4 . . . . . . . 1 . . . . . 2 . . . . . . 1 Utility 25 | . 2 . 4 1 . . 2 . . 5 . . . . 2 . . . . . . . 1 . 2 . 1 . . 1 4 Weapon 11 | . . . 3 2 1 . . . . 2 . 1 . . . . . . . . . . 1 . . . . . . . 1 Tool/Special 1 | . . . . . . . . . . 1 . . . . . . . . . . . . . . . . . . . . . Average Slot Usage (%) 94 | . 99 100 98 99 100 100 99 99 98 99 100 99 100 99 97 83 100 95 100 100 100 91 84 87 88 88 88 89 90 89 87 Engine 2 | . 13 14 . 8 11 11 . 7 8 . . . . . . . . 3 . . . . . . . . . . . . . Core 1 | . . . 10 2 . . 8 1 . 6 3 . . . . . . . 6 4 . . . . . . . . . . . Reactor 3 | . . . . . . . . . . . 3 7 7 7 7 7 7 7 6 7 12 9 5 5 5 5 5 5 5 5 4 Treads 7 | . 14 14 19 22 22 22 27 27 26 . . . . . . . . . . . . . . . . . . . . . . Leg 16 | . . . . . . . . . . . 16 30 30 30 30 28 30 26 26 27 31 30 26 27 27 27 27 25 25 25 24 Wheel 1 | . 13 14 2 . . . . . . . . . . . . . . . . . . . . . . . . . . . . Flight 1 | . . . . . . . . . . 29 13 . . . . . . . . . . . . . . . . . . . . Device 10 | . 13 14 16 5 . . 5 5 6 7 7 4 . . . 7 15 17 13 12 12 9 11 11 11 11 11 24 24 20 19 Storage 9 | . 14 14 11 11 11 11 9 9 9 . 3 7 7 7 7 7 15 13 13 12 12 11 11 11 11 11 11 10 10 9 9 Processor 5 | . . . . . . . 8 9 9 12 15 15 15 15 15 3 . 1 6 6 6 6 5 5 5 5 4 . . . 1 Protection 5 | . . . 4 16 22 22 12 12 10 . . 2 7 6 7 5 . . . . . . 4 5 5 5 5 5 5 8 8 Energy Gun 3 | . 18 14 12 . . . . 6 . . . . . . . 3 7 4 8 9 12 6 1 . . . . . . . . Energy Cannon 9 | . . . 1 . . . . . 1 . . . 3 6 13 12 23 17 13 12 12 14 13 21 22 22 22 20 20 19 17 Ballistic Gun 11 | . 8 14 17 31 33 33 26 20 24 23 27 27 24 22 13 . . . . . . . . . . . . . . . . Peak Build Rating 170 | 7 9 11 20 20 16 16 35 42 42 50 70 71 66 69 70 105 104 118 94 102 102 115 133 134 136 135 147 163 160 168 170 Average Rating 74 | 5 7 8 17 15 15 16 26 35 37 46 57 68 64 65 65 80 104 104 92 96 102 102 123 132 134 135 135 158 157 157 160 On Entrance 76 | . 7 9 9 19 16 16 16 35 35 42 47 70 65 66 64 70 104 104 90 94 102 102 115 122 134 135 135 145 157 157 163 Avg Prop Armor Cover (%) 12 | . 13 13 10 . . . . . . . 3 . . . . 4 . . . . . . . . . . . . . . . Naked Turns 3 | . . . . . . . . . . . . . . . . . . . . . . . . . . . . . . . 3 Heaviest Build 139 | 13 89 89 100 99 97 97 102 108 111 20 48 56 56 58 58 81 79 99 73 76 76 109 115 117 117 117 122 128 125 126 139 Greatest Support 161 | 40 40 10 40 40 40 40 62 62 67 20 76 78 78 78 78 108 108 108 100 118 118 118 109 119 119 119 139 139 139 161 144 Greatest Overweight (x) 9 | . 8 8 9 2 2 2 1 1 1 . 1 . . . . 1 . . . . . . 1 . . . . 1 . . 1 Average Overweight (x) . | . 7 8 3 2 2 2 1 1 1 . . . . . . . . . . . . . . . . . . . . . . Largest Inventory Capacity 25 | 8 25 25 25 25 25 25 25 25 25 25 10 10 10 10 10 10 10 15 15 15 15 15 15 15 15 15 15 15 15 15 15 Average Capacity 16 | 7 24 25 25 25 25 25 25 25 25 5 7 10 10 10 10 8 10 10 15 15 15 15 14 15 15 15 15 15 15 14 14 Most Carried 25 | 4 25 25 25 25 25 25 25 25 25 24 10 10 10 10 10 10 10 10 15 15 15 15 15 15 15 15 15 15 15 15 15 Average Carried 15 | 2 13 25 24 24 24 25 24 24 24 5 7 9 9 9 9 7 10 9 13 14 15 14 14 14 14 15 14 14 15 14 14 Final Capacity 25 | 8 25 25 25 25 25 25 25 25 25 5 10 10 10 10 10 10 10 15 15 15 15 15 15 15 15 15 15 15 15 15 5 Final Carried 25 | 4 25 25 25 25 25 25 25 25 25 5 10 10 10 10 10 10 10 10 15 15 15 15 15 15 15 15 15 15 15 15 5 Class Distribution -------------------- 25% | Scavenger-Gunner 12% | Tank 11% | Scavenger-Golem 11% | Scavenger-Skirmisher 6% | Commander-Golem 6% | Scavenger-Mutant 5% | Golem 5% | Gunner 4% | Skirmisher 3% | Sprinter 3% | Scavenger-Tank Dominant Class ---------------- Scavenger-Mutant | -10/Materials Scavenger-Mutant | -10/Mines Gunner | -9/Materials Tank | -9/Mines Tank | -9/Exiles Tank | -8/Mines Scavenger-Skirmisher | -8/Materials Scavenger-Skirmisher | -8/Garrison Skirmisher | -8/Materials Sprinter | -7/Factory Scavenger-Gunner | -7/Garrison Scavenger-Gunner | -7/Factory Scavenger-Gunner | -7/Lower Caves Scavenger-Gunner | -7/Lower Caves Scavenger-Gunner | -7/Zion Scavenger-Gunner | -7/Deep Caves Scavenger-Gunner | -6/Proximity Caves Scavenger-Skirmisher | -6/Factory Scavenger-Gunner | -6/Lower Caves Scavenger-Gunner | -6/Lower Caves Scavenger-Gunner | -6/Data Miner Scavenger-Gunner | -5/Proximity Caves Golem | -5/Factory Commander-Golem | -5/Extension Commander-Golem | -5/Cetus Commander-Golem | -5/Archives Commander-Golem | -5/Hub_04(d) Scavenger-Golem | -4/Factory Scavenger-Golem | -4/Upper Caves Scavenger-Golem | -4/Upper Caves Scavenger-Golem | -4/Warlord Resources | -11 -10 -10 -9 -9 -9 -8 -8 -8 -8 -7 -7 -7 -7 -7 -7 -7 -6 -6 -6 -6 -6 -5 -5 -5 -5 -5 -5 -4 -4 -4 -4 ----------- Run | Yrd Mat Min Mat Min Exi Min Mat Gar Mat Fac Gar Fac Low Low Zio Dee Pro Fac Low Low Dat Pro Fac Ext Cet Arc Hub Fac Upp Upp War Matter Collected 8406 | 270 401 41 552 500 . 18 497 538 816 194 1379 386 236 266 20 535 19 119 80 170 . 40 107 114 40 . 95 60 43 40 830 Remotely 110 | . . . . . . . 110 . . . . . . . . . . . . . . . . . . . . . . . . Salvage Created 16152 | 124 651 41 1344 313 . 65 614 898 983 314 1283 747 236 445 . 1357 429 566 172 444 . 125 259 997 214 93 505 808 271 266 1588 Parts 779 | 7 39 4 86 15 . 10 36 53 55 19 57 34 10 21 . 54 23 29 8 9 . 2 10 55 7 2 22 39 16 12 45 Haulers Intercepted 17 | . 2 . 3 . . . 3 . 3 1 . 1 . . . . . 1 . . . . 1 . . . 1 1 . . . Recyclers Shooed 10 | 1 1 . 3 1 . . . . 1 . . . . . . . . 1 . . . . . . . . . 2 . . . Parts Field Recycled . | . . . . . . . . . . . . . . . . . . . . . . . . . . . . . . . . Retrieved Matter . | . . . . . . . . . . . . . . . . . . . . . . . . . . . . . . . . Parts Self-Destructed 99 | . . . . . . . . . . . . . 10 19 2 . 23 . 8 8 . 1 . . . . . . 16 12 . Prevented 2 | . . . . . . . . . . . . . 1 . . . . . . 1 . . . . . . . . . . . Parts Restored . | . . . . . . . . . . . . . . . . . . . . . . . . . . . . . . . . Kills | -11 -10 -10 -9 -9 -9 -8 -8 -8 -8 -7 -7 -7 -7 -7 -7 -7 -6 -6 -6 -6 -6 -5 -5 -5 -5 -5 -5 -4 -4 -4 -4 ------- Run | Yrd Mat Min Mat Min Exi Min Mat Gar Mat Fac Gar Fac Low Low Zio Dee Pro Fac Low Low Dat Pro Fac Ext Cet Arc Hub Fac Upp Upp War Combat Hostiles Destroyed 323 | . 11 . 22 25 . . 9 21 19 5 27 10 6 10 . 55 9 8 5 7 . 2 1 15 3 1 7 7 4 4 30 Guns 151 | . 11 . 19 17 . . 9 15 18 2 17 8 3 9 . 13 4 . 3 1 . 2 . . . . . . . . . Cannons 85 | . . . 3 . . . . . 1 . . . . 1 . . 5 7 2 6 . . 1 10 3 1 6 7 4 4 24 AOE 79 | . . . . 8 . . . 6 . 3 10 2 3 . . 38 . 1 . . . . . 4 . . . . . . 4 Classes Destroyed 27 | 3 6 . 2 1 . . 2 . 2 . 1 . 1 . . 3 1 . . . . . . 1 . . . . . . 4 Worker 19 | 1 3 . 4 . . . . . 1 2 . 1 . . . . . . . . . . 2 1 . . . 4 . . . Builder 9 | . 1 . 1 . . . 1 . . 1 . . . . . . . 3 . . . . . . . . . 2 . . . Tunneler 8 | 1 . 2 1 . . 3 . . . 1 . . . . . . . . . . . . . . . . . . . . . Hauler 17 | . 2 . 3 . . . 3 . 3 1 . 1 . . . . . 1 . . . . 1 . . . 1 1 . . . Recycler 9 | 1 1 . 2 . . . . . . 1 . 2 . . . . . 1 . . . . . . . . . 1 . . . Minesweeper 2 | . . . . . . . . . . . . . . . . . 1 . . . . . . . . . . . 1 . . Operator 6 | . 1 . 2 . . . . . . . . . . . . . . 1 . . . . 1 . . . . 1 . . . Watcher 10 | . 2 . 4 . . . 1 . 1 . . . . . . . . 1 . . . . . 1 . . . . . . . Swarmer 66 | . 6 . 4 9 . . 1 7 5 3 11 . 4 4 . . 4 . 4 . . . . 4 . . . . . . . Grunt 92 | . 5 . 11 . . . 5 7 8 1 9 6 1 4 . . 4 5 . 7 . 1 . 1 . . 2 . 2 3 10 Brawler 6 | . . . . . . . 1 . . . . . . 1 . . . . . . . . . . . . . . . . 4 Duelist 3 | . . . 1 . . . . . . . . . . . . . . . . . . . . . . . . . . . 2 Protector 2 | . . . . . . . . . . . . . . . . . . . . . . . . . . . . . . . 2 Sentry 41 | . . . 6 2 . . 1 7 3 . 4 3 1 1 . . . . . . . . 1 6 . 1 2 3 . . . Demolisher 1 | . . . . . . . . . . . . . . . . . . . . . . . . . . . . . . . 1 Specialist 2 | . . . . . . . . . 2 . . . . . . . . . . . . . . . . . . . . . . Hunter 9 | . . . . . . . 1 . . 1 . . . . . . . . 1 . . 1 . 1 . . 2 2 . . . Programmer 18 | . . . . . . . . . . . 3 1 . . . . 1 3 . . . . . . . . 1 2 2 1 4 Heavy 1 | . . . . . . . . . 1 . . . . . . . . . . . . . . . . . . . . . . Behemoth 3 | . . . . . . . . . . . . . . . . . . . . . . . . 2 . . . . . . 1 Cetus Guard 3 | . . . . . . . . . . . . . . . . . . . . . . . . . 3 . . . . . . Striker 2 | . . . . . . . . . . . . . . . . . . . . . . . . . . . . . . . 2 Executioner 4 | . . . . . . . . . . . . . . . . . . . . . . . . . . . . . . . 4 Z-Light 8 | . . . . . . . . . . . . . . . . 8 . . . . . . . . . . . . . . . Samaritan 1 | . . . . . . . . . . . . . 1 . . . . . . . . . . . . . . . . . . Assembler 2 | . . . . . . . . . . . . . . . . 2 . . . . . . . . . . . . . . . Assembled 56 | . . . . 14 . . . . . . . . . . . 42 . . . . . . . . . . . . . . . Golem 4 | . . . . . . . . . . . . . . . . 4 . . . . . . . . . . . . . . . Thug 2 | . . . . . . . . 1 . . . . . . . . . . . . . . . 1 . . . . . . . Butcher 1 | . . . . . . . . . . . . . . . . . . . . . . . . . . . . . . . 1 Guerrilla 1 | . . . . . . . . . . . . . . . . . . . . . . . . 1 . . . . . . . Infiltrator 1 | . . . . . . . . . . . 1 . . . . . . . . . . . . . . . . . . . . Best Kill Streak 43 | 2 3 1 5 4 . 2 3 5 4 6 6 5 4 7 . 43 4 6 4 3 . 2 2 5 2 1 3 5 4 3 6 Combat Bots Only 41 | . 3 . 3 4 . . 3 5 3 3 6 4 4 7 . 41 4 5 4 3 . 2 1 4 2 1 3 2 4 3 6 Max Kills in Single Turn 15 | 1 1 1 2 3 . 2 2 4 2 6 2 3 2 2 . 15 2 1 1 1 . 1 2 5 1 1 1 2 1 1 2 Gunslinging 1 | . . . 1 . . . 1 . . . . . . . . . . . . . . . . . . . . . . . . Exploded 15 | . . . . 3 . . . 4 . 3 2 2 2 . . 15 . 1 . . . . . 4 . . . . . . 2 Melee . | . . . . . . . . . . . . . . . . . . . . . . . . . . . . . . . . Uniques/NPCs Destroyed 1 | . . . . . . . . . . . . . . . . 1 . . . . . . . . . . . . . . . Z-Imprinter (-7/Deep Caves) Combat | -11 -10 -10 -9 -9 -9 -8 -8 -8 -8 -7 -7 -7 -7 -7 -7 -7 -6 -6 -6 -6 -6 -5 -5 -5 -5 -5 -5 -4 -4 -4 -4 -------- Run | Yrd Mat Min Mat Min Exi Min Mat Gar Mat Fac Gar Fac Low Low Zio Dee Pro Fac Low Low Dat Pro Fac Ext Cet Arc Hub Fac Upp Upp War Hostile Shots Fired 1464 | . 40 . 75 63 . . 57 98 104 14 109 84 15 34 . 102 34 53 35 36 . 8 4 17 9 6 16 61 20 24 346 Missed 521 | . 8 . 17 24 . . 15 30 31 6 61 40 3 9 . 25 16 20 17 5 . 2 1 7 4 . 9 24 7 8 132 Hits 943 | . 32 . 58 39 . . 42 68 73 8 48 44 12 25 . 77 18 33 18 31 . 6 3 10 5 6 7 37 13 16 214 Melee 22 | . . . 1 3 . . 4 . . . . . . . . 8 . . . . . . . . . . . . . . 6 Projectile 921 | . 32 . 57 36 . . 38 68 73 8 48 44 12 25 . 69 18 33 18 31 . 6 3 10 5 6 7 37 13 16 208 AOE 18 | . . . . . . . . . . . . . . . . . . . . . . . . . . . 2 . . . 16 Critical Strikes 49 | . 3 . 2 1 . . 1 3 4 . 1 . 1 . . 1 1 5 . 5 . . 1 2 3 . 1 . 1 . 13 Actively Blocked 4 | . . . . . . . . . . . . . . . . . . . . . . . . . . . . . . . 4 Damage Taken 18305 | . 374 . 710 564 . . 725 1071 1244 136 513 537 203 384 . 2540 208 1124 280 585 . 91 54 169 99 162 261 239 206 276 5550 Core 2618 | . 46 . 67 56 . . 88 107 84 . 57 93 . 32 . 458 36 161 45 80 . . 21 . 12 . 20 15 . 55 1085 Absorbed by Shields 437 | . . . . . . . . 4 . . . . . . . . . . . . . . . 100 56 . . 232 . . 45 Redirected to Shielding 297 | . . . . . . . . . . . . . . . . 297 . . . . . . . . . . . . . . . Ignored by Resistances 1000 | . . . . . . . . . . . . . . . . . . . . . . . 10 55 32 33 52 94 45 58 621 Regen/Repaired (Parts) 150 | . 119 . . . . . . . . . . 31 . . . . . . . . . . . . . . . . . . . Core Remaining (%) 66 | 100 . 81 . . . 69 . . 49 . . . . . . . 3 . . . . 66 . . . . 94 . . . . Volleys Fired 956 | 4 58 2 77 39 . 2 36 83 60 10 57 25 44 28 1 66 13 51 18 36 . 10 11 22 11 4 18 29 13 22 106 Largest 4 | 2 2 2 3 3 . 3 3 3 3 3 4 4 4 4 1 3 4 4 3 4 . 4 3 4 4 4 4 4 4 4 4 Hottest 250 | 100 100 70 165 73 . 60 69 123 123 75 119 124 134 160 30 250 148 179 204 244 . 244 140 230 230 230 230 230 230 230 230 Shots Fired 2320 | 8 114 4 210 92 . 6 104 172 180 28 164 86 62 64 1 71 48 82 32 81 . 31 26 84 40 16 61 97 51 85 220 Gun 1286 | 8 112 4 192 81 . 6 104 170 172 27 157 81 24 44 . 18 13 27 11 20 . 14 1 . . . . . . . . Cannon 989 | . . . 18 . . . . . 8 . . 5 36 20 1 38 35 55 21 61 . 17 25 83 40 16 61 97 51 85 216 Launcher 42 | . . . . 11 . . . 2 . 1 7 . 2 . . 15 . . . . . . . 1 . . . . . . 3 Special 3 | . 2 . . . . . . . . . . . . . . . . . . . . . . . . . . . . . 1 Kinetic 957 | . 30 2 80 81 . 6 104 115 167 27 157 81 19 43 . . . . . 10 . . . . . . . . . . 35 Thermal 1266 | 8 84 2 130 . . . . 55 13 . . 5 36 20 1 26 48 82 28 64 . 24 26 83 40 16 61 97 51 85 181 Explosive 42 | . . . . 11 . . . 2 . 1 7 . 2 . . 15 . . . . . . . 1 . . . . . . 3 Electromagnetic 54 | . . . . . . . . . . . . . 5 1 . 30 . . 4 7 . 7 . . . . . . . . . Robot Hit Streak 38 | 3 9 3 23 8 . 8 16 30 38 6 16 25 11 15 . 9 12 8 5 10 . 13 8 20 8 9 11 28 16 17 25 Robot Miss Streak 5 | 1 3 1 5 5 . . 3 3 3 4 5 3 1 5 . 5 1 4 2 2 . 3 1 1 2 1 3 4 1 2 4 Penetration Max 1 | . . . . . . . . . . . 1 1 . 1 . . . . . . . . . . . . . . . . . Secondary Targets 20 | . . . 3 2 . . 4 2 3 . 5 . . 1 . . . . . . . . . . . . . . . . . Max Gunslinging Chain 2 | . . . 2 1 . . 1 1 1 . 1 . . 1 . . . . . . . . . . . . . . . . . Shots Hit Robots 1364 | 4 67 3 138 41 . 2 77 110 131 17 109 52 21 27 . 50 25 35 9 42 . 19 16 56 28 13 25 59 22 14 152 Core Hits 747 | 4 33 2 80 42 . 3 32 43 45 15 54 24 14 15 . 119 12 14 6 13 . 6 6 29 10 2 10 20 8 7 79 Critical Kills 7 | . 1 . 2 . . . . . . . . 1 . . . . . . . . . . . 1 . . 1 . . . 1 Critical Parts Destroyed 4 | . . . . . . . 1 . . . 1 1 1 . . . . . . . . . . . . . . . . . . Critical Strikes 23 | . 3 . 6 . . . 2 . . . 2 2 1 . . 1 . . . . . . . 1 . . 1 . . . 4 Burn 6 | . 2 . 4 . . . . . . . . . . . . . . . . . . . . . . . . . . . . Meltdown 3 | . . . . . . . . . . . . . . . . . . . . . . . . 1 . . 1 . . . 1 Destroy 9 | . 1 . 2 . . . 2 . . . 1 2 1 . . . . . . . . . . . . . . . . . . Blast 3 | . . . . . . . . . . . . . . . . . . . . . . . . . . . . . . . 3 Corrupt 1 | . . . . . . . . . . . . . . . . 1 . . . . . . . . . . . . . . . Sever 1 | . . . . . . . . . . . 1 . . . . . . . . . . . . . . . . . . . . Melee Attacks 78 | . . . . . . . . . . 21 35 9 13 . . . . . . . . . . . . . . . . . . Impact . | . . . . . . . . . . . . . . . . . . . . . . . . . . . . . . . . Slashing 78 | . . . . . . . . . . 21 35 9 13 . . . . . . . . . . . . . . . . . . Piercing . | . . . . . . . . . . . . . . . . . . . . . . . . . . . . . . . . Sneak Attacks 6 | . . . . . . . . . . 1 5 . . . . . . . . . . . . . . . . . . . . Combat Hostiles . | . . . . . . . . . . . . . . . . . . . . . . . . . . . . . . . . Follow-up Attacks . | . . . . . . . . . . . . . . . . . . . . . . . . . . . . . . . . Damage Inflicted 47545 | 51 738 33 2020 1108 . 47 1101 2136 2218 635 4048 1617 726 689 . 5161 1049 2390 243 1273 . 510 805 2793 1143 592 1093 3043 954 641 8688 Guns 14751 | 51 738 33 1808 500 . 40 1101 1850 2081 279 1690 1212 314 635 . 1203 406 299 130 190 . 191 . . . . . . . . . Cannons 22254 | . . . 212 . . . . . 125 . . . 107 54 . 590 643 1250 113 1083 . 319 706 2478 1143 592 1085 2613 954 641 7546 Explosions 8844 | . . . . 594 . . . 286 . 240 1063 405 305 . . 3368 . 836 . . . . . 315 . . . 290 . . 1142 Melee 1411 | . . . . . . . . . . 116 1295 . . . . . . . . . . . . . . . . . . . . Ramming 285 | . . . . 14 . 7 . . 12 . . . . . . . . 5 . . . . 99 . . . 8 140 . . . Kinetic 12324 | . 183 7 747 500 . 40 1101 1499 2019 279 1690 1212 239 635 . . . . . 193 . . . . . . . . . . 1980 Thermal 25089 | 51 555 26 1273 . . . . 351 187 . . . 107 26 . 1203 1049 2385 227 1020 . 453 706 2478 1143 592 1085 2903 954 641 5674 Explosive 7610 | . . . . 594 . . . 286 . 240 1063 405 305 . . 3368 . . . . . . . 315 . . . . . . 1034 Electromagnetic 826 | . . . . . . . . . . . . . 75 28 . 590 . . 16 60 . 57 . . . . . . . . . Impact . | . . . . . . . . . . . . . . . . . . . . . . . . . . . . . . . . Slashing 1411 | . . . . . . . . . . 116 1295 . . . . . . . . . . . . . . . . . . . . Piercing . | . . . . . . . . . . . . . . . . . . . . . . . . . . . . . . . . Highest Corruption 8 | . 1 1 . . . . . . . . . 2 2 2 2 1 1 . . . . . . . . . 8 1 1 1 2 Average Corruption 1 | . 1 1 . . . . . . . . . 1 2 2 2 1 1 . . . . . . . . . 7 1 1 1 1 Corruption Purged . | . . . . . . . . . . . . . . . . . . . . . . . . . . . . . . . . Corruption Blocked . | . . . . . . . . . . . . . . . . . . . . . . . . . . . . . . . . Effects 91 | . 12 2 . . . . . . . . . 4 21 11 . 6 7 . . . . . . . . . 15 . 4 3 6 Message Errors 26 | . 3 1 . . . . . . . . . . 11 4 . 1 1 . . . . . . . . . 4 . . 1 . Matter Fused 24 | . 4 1 . . . . . . . . . 1 5 2 . 1 2 . . . . . . . . . 3 . 3 . 2 Heat Flow Errors 5 | . 1 . . . . . . . . . . . . 1 . . 1 . . . . . . . . . 1 . . . 1 Energy Discharges 9 | . . . . . . . . . . . . 2 . 1 . . 1 . . . . . . . . . 1 . . 2 2 Parts Rejected 1 | . 1 . . . . . . . . . . . . . . . . . . . . . . . . . . . . . . Parts Fused 1 | . 1 . . . . . . . . . . . . . . . . . . . . . . . . . . . . . . Data Loss (minor) 10 | . 1 . . . . . . . . . . . 3 . . 2 2 . . . . . . . . . 1 . . . 1 Data Loss (major) 6 | . . . . . . . . . . . . . 1 1 . 1 . . . . . . . . . . 3 . . . . Misfires 2 | . . . . . . . . . . . . . 1 1 . . . . . . . . . . . . . . . . . Alerts 2 | . 1 . . . . . . . . . . . . . . 1 . . . . . . . . . . . . . . . Weapon Failures 5 | . . . . . . . . . . . . 1 . 1 . . . . . . . . . . . . 2 . 1 . . Overload Shots . | . . . . . . . . . . . . . . . . . . . . . . . . . . . . . . . . Overflow Damage 1254 | . . . 7 62 . . . 48 . . 129 5 11 . . 60 49 349 . 11 . 51 93 . . . . 150 54 21 154 Projectiles 572 | . . . 7 . . . . . . . . . . . . 7 49 87 . 11 . 51 76 . . . . 76 54 21 133 Explosions 587 | . . . . 62 . . . 48 . . 85 5 11 . . 53 . 262 . . . . . . . . . 40 . . 21 Melee 95 | . . . . . . . . . . . 44 . . . . . . . . . . . 17 . . . . 34 . . . Knockbacks 11 | . . . . . . . . . . . . . . . . . . . . 4 . . . . . . . . . . 7 Impact . | . . . . . . . . . . . . . . . . . . . . . . . . . . . . . . . . Kinetic 10 | . . . . . . . . . . . . . . . . . . . . 3 . . . . . . . . . . 7 Secondary 1 | . . . . . . . . . . . . . . . . . . . . 1 . . . . . . . . . . . Self-Inflicted Damage 562 | . . . . 88 . . . 19 . . 40 53 . . . . . 289 . . . . . . . . . . . . 73 Shots 12 | . . . . 3 . . . 1 . . 2 1 . . . . . 4 . . . . . . . . . . . . 1 Rammed 5 | . . . . 3 . 1 . . 1 . . . . . . . . . . . . . . . . . . . . . . Targets Rammed 15 | . . . . 3 . 1 . . 1 . . . . . . . . 2 . . . . 3 . . . 1 4 . . . Kicked 10 | . . . . . . . . . . . . . . . . . . 2 . . . . 3 . . . 1 4 . . . Crushed . | . . . . . . . . . . . . . . . . . . . . . . . . . . . . . . . . Highest Temperature 390 | 78 252 30 183 60 . 15 63 339 266 8 136 141 247 245 . 390 93 104 348 319 . 329 178 167 108 167 134 50 . 102 197 Average Temperature 72 | 31 70 18 54 19 . 8 13 87 65 4 58 56 106 89 . 113 26 32 151 158 . 149 75 53 56 86 48 31 . 37 87 Received Heat Transfer 3448 | . 189 . 213 87 . . 216 528 270 . 69 162 63 135 . 435 54 234 30 328 . . 9 26 . 9 . 10 30 84 267 Effects 5 | . . . . . . . . 2 . . . . . . . . . . . 3 . . . . . . . . . . . Energy Bleed 2 | . . . . . . . . 2 . . . . . . . . . . . . . . . . . . . . . . . Interference 3 | . . . . . . . . . . . . . . . . . . . . 3 . . . . . . . . . . . Siege Activations . | . . . . . . . . . . . . . . . . . . . . . . . . . . . . . . . . Martial Activations . | . . . . . . . . . . . . . . . . . . . . . . . . . . . . . . . . Shielding Activations . | . . . . . . . . . . . . . . . . . . . . . . . . . . . . . . . . Robots Disrupted 2 | . . . . . . . . . . . . . . . . . . . . . . 2 . . . . . . . . . Combat Hostiles 2 | . . . . . . . . . . . . . . . . . . . . . . 2 . . . . . . . . . Robots Corrupted 5 | . . . . . . . . . . . . . . . . 4 . . . . . . . . . . . 1 . . . Combat Hostiles 4 | . . . . . . . . . . . . . . . . 4 . . . . . . . . . . . . . . . Parts Fried 3 | . . . . . . . . . . . . . . . . . . . . . . 1 . . . . . 2 . . . Impact Corruptions 4 | . . . . . . . . . . . . . . . . . . . . . . . 1 . . . . 3 . . . Robots Melted 4 | . . . . . . . . . . . . . . . . . . . . . . . . 1 . . 1 . . . 2 Combat Hostiles 4 | . . . . . . . . . . . . . . . . . . . . . . . . 1 . . 1 . . . 2 Parts Melted 50 | . 2 . 10 . . . . . 1 . . . . . . 7 1 4 3 . . . 1 4 . 1 3 2 2 1 8 Heat Transferred 21219 | 148 1776 74 3126 . . . . 554 333 . . . 148 37 . 1515 819 1545 309 1015 . 556 473 1825 795 459 721 1568 559 311 2553 Parts Sabotaged . | . . . . . . . . . . . . . . . . . . . . . . . . . . . . . . . . Parts Stolen . | . . . . . . . . . . . . . . . . . . . . . . . . . . . . . . . . Parts Stripped . | . . . . . . . . . . . . . . . . . . . . . . . . . . . . . . . . Power Chain Reactions 2 | . . . . . . . . . . . . . . . . . . . . . . . . . . . . 1 . . 1 Alert | -11 -10 -10 -9 -9 -9 -8 -8 -8 -8 -7 -7 -7 -7 -7 -7 -7 -6 -6 -6 -6 -6 -5 -5 -5 -5 -5 -5 -4 -4 -4 -4 ------- Run | Yrd Mat Min Mat Min Exi Min Mat Gar Mat Fac Gar Fac Low Low Zio Dee Pro Fac Low Low Dat Pro Fac Ext Cet Arc Hub Fac Upp Upp War Maximum Alert Level 4 | . . . 1 . . . . 3 2 . 4 3 . . . . . . . . . . . 2 1 1 1 1 . . . Low Security (%) 62 | 100 100 100 51 100 . 100 100 16 40 100 5 . . . . . . 100 . . . . 100 36 16 90 61 86 . . . Level 1 20 | . . . 48 . . . . 14 58 . 6 . . . . . . . . . . . . 62 83 9 38 13 . . . Level 2 6 | . . . . . . . . 42 1 . 8 43 . . . . . . . . . . . . . . . . . . . Level 3 8 | . . . . . . . . 26 . . 43 56 . . . . . . . . . . . . . . . . . . . Level 4 2 | . . . . . . . . . . . 36 . . . . . . . . . . . . . . . . . . . . Level 5 . | . . . . . . . . . . . . . . . . . . . . . . . . . . . . . . . . High Security . | . . . . . . . . . . . . . . . . . . . . . . . . . . . . . . . . Max Security . | . . . . . . . . . . . . . . . . . . . . . . . . . . . . . . . . Peak Influence 1363 | 5 119 5 308 137 . 10 120 823 401 172 1363 789 . . . . . 195 . . . . 34 403 310 202 386 219 . . . Initial 715 | . 3 . . 87 . . . 1 401 126 111 715 . . . . . 42 . . . . . . 147 100 53 161 . . . Average 234 | . 32 . 177 26 . . 57 476 246 114 943 685 . . . . . 66 . . . . 2 214 236 160 152 143 . . . Influence Increases 10717 | 15 422 10 778 336 . 15 426 872 623 391 1282 465 265 240 . . 260 572 120 190 . 80 70 901 383 192 631 332 95 100 651 Destroy 0b10 Robot/C 5700 | . 220 . 440 220 . . 280 440 380 140 600 220 120 200 . . 180 160 100 140 . 40 20 500 160 80 200 140 80 80 560 Destroy 0b10 Robot/NC 480 | 15 50 10 85 . . 15 30 . 25 35 30 20 . . . . 5 35 . . . . 20 15 10 . 15 45 5 . 15 Destroy Leader 918 | . 58 . 134 30 . . 78 30 98 32 20 72 10 10 . . 30 54 20 20 . 10 12 44 . . 74 52 10 20 . Allied During Kill 739 | . . . . 11 . . 13 14 . 3 9 2 . . . . . . . . . . . 232 170 80 204 . . . 1 Trap Triggered on 0b10 40 | . 10 . . . . . . . . . 30 . . . . . . . . . . . . . . . . . . . . Successful Hack 304 | . 22 . 27 . . . 9 7 26 83 . 27 . . . . . 37 . . . . 2 31 9 . 14 10 . . . Select Force Hacks 170 | . 60 . 30 . . . . . 30 . . . . . . . . . . . . . . . . . 50 . . . . Disable Machine 450 | . . . 15 . . . . 15 45 15 90 45 . . . . . 180 . . . . . . . 30 . 15 . . . Anti-Garrison Action 650 | . . . . . . . . 300 . . 350 . . . . . . . . . . . . . . . . . . . . Destroy Structure 666 | . 2 . 2 75 . . 1 66 4 23 138 49 . . . . . 76 . . . . 16 64 34 2 44 70 . . . Lose Combat Pursuer 600 | . . . 45 . . . 15 . 15 60 15 30 135 30 . . 45 30 . 30 . 30 . 15 . . 30 . . . 75 Influence Decreases 10462 | 10 427 10 554 491 69 15 423 52 1168 510 78 1112 664 399 158 . 192 477 283 190 . 80 70 638 396 290 452 488 263 107 396 Entered New Map 2655 | . 2 . . 137 69 . . 2 422 152 48 648 266 61 158 . . 26 61 . . . . . 116 150 99 170 66 2 . Time Decay 6438 | 10 415 10 544 334 . 15 348 . 556 278 . 374 398 318 . . 192 391 222 190 . 80 70 448 160 60 209 318 197 105 196 Lost Part 420 | . 10 . 10 20 . . 30 30 40 . 10 10 . 20 . . . 60 . . . . . . . . . . . . 180 Lost Ally 649 | . . . . . . . 45 20 . 80 20 80 . . . . . . . . . . . 40 120 80 144 . . . 20 Purge Threat 300 | . . . . . . . . . 150 . . . . . . . . . . . . . . 150 . . . . . . . Squads Dispatched 44 | . 4 . 3 1 . . 2 . 4 6 . 9 . . . . . 8 . . . . 1 . . . 4 2 . . . Investigation 15 | . 3 . 1 1 . . 1 . 1 1 . 4 . . . . . 2 . . . . . . . . 1 . . . . Extermination 9 | . . . . . . . . . . 3 . 1 . . . . . 4 . . . . . . . . . 1 . . . Reinforcement 16 | . 1 . 2 . . . 1 . 3 1 . 1 . . . . . 2 . . . . 1 . . . 3 1 . . . Assault 3 | . . . . . . . . . . . . 3 . . . . . . . . . . . . . . . . . . . Garrison 1 | . . . . . . . . . . 1 . . . . . . . . . . . . . . . . . . . . . Intercept . | . . . . . . . . . . . . . . . . . . . . . . . . . . . . . . . . Searches Triggered . | . . . . . . . . . . . . . . . . . . . . . . . . . . . . . . . . Construction Impeded 3 | . . . . . . . . . . . . 1 . . . . . 1 . . . . 1 . . . . . . . . Haulers Reinforced . | . . . . . . . . . . . . . . . . . . . . . . . . . . . . . . . . Active Scanning Responses . | . . . . . . . . . . . . . . . . . . . . . . . . . . . . . . . . Cargo Convoy Interrupts . | . . . . . . . . . . . . . . . . . . . . . . . . . . . . . . . . Stealth | -11 -10 -10 -9 -9 -9 -8 -8 -8 -8 -7 -7 -7 -7 -7 -7 -7 -6 -6 -6 -6 -6 -5 -5 -5 -5 -5 -5 -4 -4 -4 -4 --------- Run | Yrd Mat Min Mat Min Exi Min Mat Gar Mat Fac Gar Fac Low Low Zio Dee Pro Fac Low Low Dat Pro Fac Ext Cet Arc Hub Fac Upp Upp War Distress Signals 25 | . 2 . 5 . . . 2 . 3 1 . 1 . . . . . 1 . . . . . 1 3 . 4 . . . 2 Communications Jammed 25 | . . . . . . . . . . . . . . . . . . . . . . . . . . . . 25 . . . Distress Signals 25 | . . . . . . . . . . . . . . . . . . . . . . . . . . . . 25 . . . Times Spotted 531 | . 22 . 39 25 . . 23 23 26 13 31 12 8 12 . 55 11 14 10 8 . 5 3 21 9 4 13 11 4 4 125 Peak Tracking Total 37 | . 6 . 6 8 . . 5 4 4 8 10 4 9 7 . 37 4 5 5 3 . 2 1 5 5 2 4 3 4 3 20 Tactical Retreats 29 | . . . 2 1 . . 1 . 1 3 1 1 3 2 . . 2 1 . 1 . 2 . 1 . . 2 . . . 5 Traps | -11 -10 -10 -9 -9 -9 -8 -8 -8 -8 -7 -7 -7 -7 -7 -7 -7 -6 -6 -6 -6 -6 -5 -5 -5 -5 -5 -5 -4 -4 -4 -4 ------- Run | Yrd Mat Min Mat Min Exi Min Mat Gar Mat Fac Gar Fac Low Low Zio Dee Pro Fac Low Low Dat Pro Fac Ext Cet Arc Hub Fac Upp Upp War Traps Triggered 19 | . 1 . . . . . 1 4 . . 5 . . . . . . 3 . . . . 1 2 . . 2 . . . . Indirectly . | . . . . . . . . . . . . . . . . . . . . . . . . . . . . . . . . Trap Hack Attempts 10 | . 10 . . . . . . . . . . . . . . . . . . . . . . . . . . . . . . Triggered . | . . . . . . . . . . . . . . . . . . . . . . . . . . . . . . . . Disarmed 6 | . . . . . . . . . . . . . . . . . . . . . . . . 6 . . . . . . . Reprogrammed 3 | . 3 . . . . . . . . . . . . . . . . . . . . . . . . . . . . . . Reused 4 | . 1 . . . . . . . . . 3 . . . . . . . . . . . . . . . . . . . . Traps Extracted . | . . . . . . . . . . . . . . . . . . . . . . . . . . . . . . . . Installed 3 | . . . . . . . . . . . 3 . . . . . . . . . . . . . . . . . . . . Triggered 4 | . 1 . . . . . . . . . 3 . . . . . . . . . . . . . . . . . . . . Most Traps Carried 3 | . . . . . . . . . . . 3 . . . . . . . . . . . . . . . . . . . . Machines | -11 -10 -10 -9 -9 -9 -8 -8 -8 -8 -7 -7 -7 -7 -7 -7 -7 -6 -6 -6 -6 -6 -5 -5 -5 -5 -5 -5 -4 -4 -4 -4 ---------- Run | Yrd Mat Min Mat Min Exi Min Mat Gar Mat Fac Gar Fac Low Low Zio Dee Pro Fac Low Low Dat Pro Fac Ext Cet Arc Hub Fac Upp Upp War Machines Disabled 44 | . . . 1 . . . . 4 3 1 13 3 . 1 . 1 . 12 . . . . . . . 2 . 1 . 2 . Max in Single Turn 4 | . . . 1 . . . . 1 1 1 2 1 . 1 . 1 . 4 . . . . . . . . . 1 . 1 . Garrison Access 1 | . . . . . . . . . . . . . . . . . . . . . . . . . . . 1 . . . . Garrison Relay 7 | . . . . . . . . 3 . . 4 . . . . . . . . . . . . . . . . . . . . Phase Generator 1 | . . . . . . . . . . . 1 . . . . . . . . . . . . . . . . . . . . Network Hub 3 | . . . . . . . . . . . . . . . . . . . . . . . . . . . 3 . . . . Machines Repaired . | . . . . . . . . . . . . . . . . . . . . . . . . . . . . . . . . Machines Dismantled . | . . . . . . . . . . . . . . . . . . . . . . . . . . . . . . . . Machines Sabotaged 1 | . . . . . . . . . . . . . . . . . . . . . . . . . . . 1 . . . . Overloaded Fab Kills . | . . . . . . . . . . . . . . . . . . . . . . . . . . . . . . . . Hacking | -11 -10 -10 -9 -9 -9 -8 -8 -8 -8 -7 -7 -7 -7 -7 -7 -7 -6 -6 -6 -6 -6 -5 -5 -5 -5 -5 -5 -4 -4 -4 -4 --------- Run | Yrd Mat Min Mat Min Exi Min Mat Gar Mat Fac Gar Fac Low Low Zio Dee Pro Fac Low Low Dat Pro Fac Ext Cet Arc Hub Fac Upp Upp War Machines Accessed 98 | . 9 1 8 1 2 . 3 2 6 20 2 7 1 . 1 . . 7 . 1 4 . 5 9 1 . 3 1 . . 4 Terminals 51 | . 6 1 5 . . . 2 2 5 9 2 2 . . . . . 2 . . . . 3 8 1 . 2 1 . . . Fabricators 4 | . . . . . . . . . . 3 . 1 . . . . . . . . . . . . . . . . . . . Repair Stations 2 | . 1 . . . . . . . . . . 1 . . . . . . . . . . . . . . . . . . . Recycling Units 12 | . 2 . 1 . . . . . 1 3 . 1 . . . . . 2 . . . . 1 1 . . . . . . . Scanalyzers 10 | . . . 2 . . . . . . 3 . 2 . . . . . 2 . . . . 1 . . . . . . . . Garrison Access 5 | . . . . . . . 1 . . 2 . . . . . . . 1 . . . . . . . . 1 . . . . Total Hacks 277 | . 17 4 32 1 2 . 8 4 19 50 4 20 1 . 2 . . 14 . 1 30 . 10 29 1 . 7 11 . . 10 Successful 165 | . 8 1 19 1 2 . 5 1 9 31 1 13 1 . 2 . . 6 . 1 30 . 1 15 1 . 3 4 . . 10 Failed 111 | . 9 3 13 . . . 3 3 10 19 3 7 . . . . . 8 . . . . 8 14 . . 4 7 . . . Catastrophic 17 | . 1 . 3 . . . 2 . . 3 1 1 . . . . . 2 . . . . . 4 . . . . . . . Database Lockouts 1 | . . . . . . . . . . . . . . . . . . . . . . . 1 . . . . . . . . Manual 111 | . 13 4 11 . 1 . 6 . 12 17 . 7 . . 4 . . 1 . . . . 6 16 1 . 4 6 . 1 1 Terminals 152 | . 13 4 15 . . . 7 4 17 25 4 8 . . . . . 4 . . . . 6 28 1 . 5 11 . . . Fabricators 9 | . . . . . . . . . . 6 . 3 . . . . . . . . . . . . . . . . . . . Repair Stations 3 | . 2 . . . . . . . . . . 1 . . . . . . . . . . . . . . . . . . . Recycling Units 19 | . 2 . 1 . . . . . 2 5 . 2 . . . . . 4 . . . . 2 1 . . . . . . . Scanalyzers 39 | . . . 16 . . . . . . 10 . 6 . . . . . 5 . . . . 2 . . . . . . . . Garrison Access 8 | . . . . . . . 1 . . 4 . . . . . . . 1 . . . . . . . . 2 . . . . Terminal Hacks 90 | . 3 1 4 1 2 . 1 1 6 11 1 2 1 . 2 . . 1 . 1 30 . . 8 1 . 1 2 . . 10 Record 23 | . . . . . 1 . . . . 1 . . . . . . . . . . 11 . . 1 . . . . . . 9 Part Schematic 14 | . . . . . . . . . . 1 . . . . 2 . . . . . 10 . . 1 . . . . . . . Robot Schematic 8 | . 1 . . . . . . . . 1 . . . . . . . . . . 6 . . . . . . . . . . Robot Analysis 5 | . 2 1 1 . . . . . . . . . . . . . . . . . . . . 1 . . . . . . . Prototype ID Bank 6 | . . . 1 . . . . . . . . . . . . . . . . . 3 . . 2 . . . . . . . Open Door 6 | . . . . 1 . . . 1 . . . . 1 . . . . . . 1 . . . . 1 . . . . . 1 Branch Access Points 5 | . . . 1 . . . . . 1 1 . . . . . . . 1 . . . . . . . . . 1 . . . Emergency Access Points 2 | . . . . . . . . . . 1 1 . . . . . . . . . . . . . . . . . . . . Machine Index 1 | . . . . . . . . . . 1 . . . . . . . . . . . . . . . . . . . . . Alert Level 2 | . . . . . . . . . 1 . . . . . . . . . . . . . . 1 . . . . . . . Unreport Threat 2 | . . . . . . . . . 1 . . . . . . . . . . . . . . 1 . . . . . . . Locate Traps 1 | . . . . . . . . . . 1 . . . . . . . . . . . . . . . . . . . . . Disarm Traps 1 | . . . . . . . . . . . . . . . . . . . . . . . . 1 . . . . . . . Maintenance Status 2 | . . . . . . . . . . 1 . 1 . . . . . . . . . . . . . . . . . . . Hauler Manifests 4 | . . . 1 . . . 1 . 1 1 . . . . . . . . . . . . . . . . . . . . . Zone Layout 7 | . . . . . . . . . 2 2 . 1 . . . . . . . . . . . . . . 1 1 . . . Proto ID Catalog 1 | . . . . . 1 . . . . . . . . . . . . . . . . . . . . . . . . . . Fabricator Hacks 3 | . . . . . . . . . . 2 . 1 . . . . . . . . . . . . . . . . . . . Network Status 2 | . . . . . . . . . . 1 . 1 . . . . . . . . . . . . . . . . . . . Load Schematic 1 | . . . . . . . . . . 1 . . . . . . . . . . . . . . . . . . . . . Repair Station Hacks 2 | . 2 . . . . . . . . . . . . . . . . . . . . . . . . . . . . . . Scan Component 1 | . 1 . . . . . . . . . . . . . . . . . . . . . . . . . . . . . . Repair 1 | . 1 . . . . . . . . . . . . . . . . . . . . . . . . . . . . . . Recycling Unit Hacks 6 | . . . . . . . . . . 3 . 2 . . . . . . . . . . . 1 . . . . . . . Report Inventory 2 | . . . . . . . . . . 2 . . . . . . . . . . . . . . . . . . . . . Retrieve Matter 1 | . . . . . . . . . . . . 1 . . . . . . . . . . . . . . . . . . . Retrieve Components 3 | . . . . . . . . . . 1 . 1 . . . . . . . . . . . 1 . . . . . . . Scanalyzer 28 | . . . 13 . . . . . . 6 . 4 . . . . . 4 . . . . 1 . . . . . . . . Insert Component 7 | . . . 3 . . . . . . 1 . 2 . . . . . 1 . . . . . . . . . . . . . Analyze 9 | . . . 4 . . . . . . 1 . 2 . . . . . 2 . . . . . . . . . . . . . Retrieve Study 12 | . . . 6 . . . . . . 4 . . . . . . . 1 . . . . 1 . . . . . . . . Garrison Access Hacks 3 | . . . . . . . 1 . . 1 . . . . . . . . . . . . . . . . 1 . . . . Unlock Access 2 | . . . . . . . 1 . . 1 . . . . . . . . . . . . . . . . . . . . . Seal Access 1 | . . . . . . . . . . . . . . . . . . . . . . . . . . . 1 . . . . Unauthorized Hacks 33 | . 3 . 2 . . . 3 . 3 8 . 4 . . . . . 1 . . . . . 6 . . 1 2 . . . Terminals 24 | . 1 . 1 . . . 3 . 2 6 . 1 . . . . . 1 . . . . . 6 . . 1 2 . . . Assimilate 3 | . . . . . . . . . 1 1 . . . . . . . 1 . . . . . . . . . . . . . Botnet 11 | . 1 . . . . . 2 . . 5 . 1 . . . . . . . . . . . 1 . . . 1 . . . Operators 4 | . . . 1 . . . 1 . 1 . . . . . . . . . . . . . . . . . . 1 . . . Skim 5 | . . . . . . . . . . . . . . . . . . . . . . . . 5 . . . . . . . Sabotage 1 | . . . . . . . . . . . . . . . . . . . . . . . . . . . 1 . . . . Fabricators 4 | . . . . . . . . . . 2 . 2 . . . . . . . . . . . . . . . . . . . Liberate 2 | . . . . . . . . . . 1 . 1 . . . . . . . . . . . . . . . . . . . Haulers 1 | . . . . . . . . . . . . 1 . . . . . . . . . . . . . . . . . . . Recompile 1 | . . . . . . . . . . 1 . . . . . . . . . . . . . . . . . . . . . Repair Stations 1 | . . . . . . . . . . . . 1 . . . . . . . . . . . . . . . . . . . Patch 1 | . . . . . . . . . . . . 1 . . . . . . . . . . . . . . . . . . . Recycling Units 4 | . 2 . 1 . . . . . 1 . . . . . . . . . . . . . . . . . . . . . . Tunnel 4 | . 2 . 1 . . . . . 1 . . . . . . . . . . . . . . . . . . . . . . Scanalyzers . | . . . . . . . . . . . . . . . . . . . . . . . . . . . . . . . . Garrison Access . | . . . . . . . . . . . . . . . . . . . . . . . . . . . . . . . . Data Cores Recovered 2 | . . . . . . . . . . . . . . . . . . . . . . . 1 . . . . 1 . . . Used 2 | . . . . . . . . . . . . . . . . . . . . . . . 1 . . . . 1 . . . Hacking Detections 66 | . 7 1 6 . . . 2 2 5 17 1 4 . . . . . 6 . . . . 4 8 . . 2 1 . . . Full Trace Events 7 | . 1 . 1 . . . . 1 . . . 3 . . . . . 1 . . . . . . . . . . . . . Feedback Events 1 | . . . . . . . . . . . . 1 . . . . . . . . . . . . . . . . . . . Corruption 1 | . . . . . . . . . . . . 1 . . . . . . . . . . . . . . . . . . . Feedback Blocked . | . . . . . . . . . . . . . . . . . . . . . . . . . . . . . . . . Robot Schematics Acquired 12 | . 1 . . . . . . . . 1 . . . . 4 . . . . . 6 . . . . . . . . . . Robots Built . | . . . . . . . . . . . . . . . . . . . . . . . . . . . . . . . . Authchips . | . . . . . . . . . . . . . . . . . . . . . . . . . . . . . . . . Time . | . . . . . . . . . . . . . . . . . . . . . . . . . . . . . . . . Total Robot Build Rating . | . . . . . . . . . . . . . . . . . . . . . . . . . . . . . . . . Part Schematics Acquired 35 | . . . 3 . . . . . . 2 . 1 . . 17 . . 1 . . 10 . . 1 . . . . . . . Parts Built . | . . . . . . . . . . . . . . . . . . . . . . . . . . . . . . . . Authchips . | . . . . . . . . . . . . . . . . . . . . . . . . . . . . . . . . Time . | . . . . . . . . . . . . . . . . . . . . . . . . . . . . . . . . Total Part Build Rating . | . . . . . . . . . . . . . . . . . . . . . . . . . . . . . . . . Part Studies Acquired 12 | . . . 6 . . . . . . 4 . . . . . . . 1 . . . . 1 . . . . . . . . Parts Repaired 1 | . 1 . . . . . . . . . . . . . . . . . . . . . . . . . . . . . . Time 26 | . 26 . . . . . . . . . . . . . . . . . . . . . . . . . . . . . . Parts Recycled . | . . . . . . . . . . . . . . . . . . . . . . . . . . . . . . . . Recycled Matter . | . . . . . . . . . . . . . . . . . . . . . . . . . . . . . . . . Retrieved Matter 37 | . . . . . . . . . . . . 37 . . . . . . . . . . . . . . . . . . . Retrieved Components 16 | . . . . . . . . . . 2 . 10 . . . . . . . . . . . 4 . . . . . . . Parts Scanalyzed 6 | . . . 3 . . . . . . 1 . 1 . . . . . 1 . . . . . . . . . . . . . Part Schematics Acquired 6 | . . . 3 . . . . . . 1 . 1 . . . . . 1 . . . . . . . . . . . . . Parts Damaged . | . . . . . . . . . . . . . . . . . . . . . . . . . . . . . . . . Bothacking | -11 -10 -10 -9 -9 -9 -8 -8 -8 -8 -7 -7 -7 -7 -7 -7 -7 -6 -6 -6 -6 -6 -5 -5 -5 -5 -5 -5 -4 -4 -4 -4 ------------ Run | Yrd Mat Min Mat Min Exi Min Mat Gar Mat Fac Gar Fac Low Low Zio Dee Pro Fac Low Low Dat Pro Fac Ext Cet Arc Hub Fac Upp Upp War Used RIF Installer . | . . . . . . . . . . . . . . . . . . . . . . . . . . . . . . . . Robots Hacked . | . . . . . . . . . . . . . . . . . . . . . . . . . . . . . . . . Non-combat . | . . . . . . . . . . . . . . . . . . . . . . . . . . . . . . . . Combat . | . . . . . . . . . . . . . . . . . . . . . . . . . . . . . . . . Robot Hacks Applied . | . . . . . . . . . . . . . . . . . . . . . . . . . . . . . . . . Relay Couplers Released 29 | . . . . . . . . 14 . . 15 . . . . . . . . . . . . . . . . . . . . Machine Destruction 29 | . . . . . . . . 14 . . 15 . . . . . . . . . . . . . . . . . . . . Fabnet Peak Effective % . | . . . . . . . . . . . . . . . . . . . . . . . . . . . . . . . . Robots Rewired 20 | . . . . . . . . 2 . . 2 . . 2 . . . . . . . . . 14 . . . . . . . Allies Hacked . | . . . . . . . . . . . . . . . . . . . . . . . . . . . . . . . . Hacks Repelled . | . . . . . . . . . . . . . . . . . . . . . . . . . . . . . . . . Allies | -11 -10 -10 -9 -9 -9 -8 -8 -8 -8 -7 -7 -7 -7 -7 -7 -7 -6 -6 -6 -6 -6 -5 -5 -5 -5 -5 -5 -4 -4 -4 -4 -------- Run | Yrd Mat Min Mat Min Exi Min Mat Gar Mat Fac Gar Fac Low Low Zio Dee Pro Fac Low Low Dat Pro Fac Ext Cet Arc Hub Fac Upp Upp War Total Allies 50 | . . . . 3 . . . 2 1 4 4 3 . 2 . . . . . . . . . 25 5 . . . . . 1 Largest Group 21 | . . . . 3 3 3 3 2 1 3 2 3 . 2 2 2 . . . . . . . 21 21 18 13 . . . 1 Highest-Rated Group 988 | . . . . 40 40 40 40 62 10 48 175 48 . 48 48 48 . . . . . . . 668 988 864 604 . . . 119 Highest-Rated Ally 159 | . . . . 16 16 16 16 31 10 16 95 21 . 32 32 32 . . . . . . . 159 159 159 96 . . . 119 Initial Warlord ECA Mod 15 | . . . . . . . . . 7 6 6 15 15 15 15 15 14 14 14 14 14 13 13 13 13 13 13 12 12 12 12 Total Orders 12 | . . . . . . . . . . . . . . . . 2 . 6 . . . . 3 . . . . 1 . . . STAY 1 | . . . . . . . . . . . . . . . . 1 . . . . . . . . . . . . . . . FOLLOW 1 | . . . . . . . . . . . . . . . . 1 . . . . . . . . . . . . . . . RETURN 10 | . . . . . . . . . . . . . . . . . . 6 . . . . 3 . . . . 1 . . . Ally Attacks 277 | . . . . . . . 24 10 . 13 7 17 . . . 22 . . . . . . . 80 43 24 36 . . . 1 Total Damage 6088 | . . . . . . . 269 187 . 183 342 234 . . . 257 . . . . . . . 1745 884 815 1104 . . . 68 Kills 42 | . . . . . . . 6 1 . 3 3 1 . . . . . . . . . . . 12 7 3 5 . . . 1 Allies Corrupted 4 | . . . . . . . . . . . . . . . . . . . . . . . . . . . 4 . . . . Allies Melted 2 | . . . . . . . . . . . . . . . . . . . . . . . . . . . . . . . 2 Field Lobotomies 1 | . . . . . . . . . . . . . . . . . . . . . . . . . . . . . . . 1 Intel | -11 -10 -10 -9 -9 -9 -8 -8 -8 -8 -7 -7 -7 -7 -7 -7 -7 -6 -6 -6 -6 -6 -5 -5 -5 -5 -5 -5 -4 -4 -4 -4 ------- Run | Yrd Mat Min Mat Min Exi Min Mat Gar Mat Fac Gar Fac Low Low Zio Dee Pro Fac Low Low Dat Pro Fac Ext Cet Arc Hub Fac Upp Upp War Active Infowar (turns) 11422 | 66 1528 324 1459 718 . . 590 . . . 2 . . . . 245 28 1638 568 592 106 792 . . . . 26 706 415 872 747 Optics 322 | . . . . . . . . . . . . . . . . . . . . . . . . . . . . . . . 322 Sensors 3539 | . . . . . . . . . . . . . . . . . . 202 568 592 106 792 . . . . . 88 391 800 . Terrain 196 | . . . . . . . . . . . . . . . . . . 196 . . . . . . . . . . . . . Seismic 4685 | 66 1528 324 1459 718 . . 590 . . . . . . . . . . . . . . . . . . . . . . . . Cloaking 1514 | . . . . . . . . . . . . . . . . 245 28 1241 . . . . . . . . . . . . . Spoofing 2 | . . . . . . . . . . . 2 . . . . . . . . . . . . . . . . . . . . Jamming 2444 | . . . . . . . . . . . . . . . . . . . . . . . . . . . 26 706 415 872 425 Robot Analysis Total 5 | . 2 1 1 . . . . . . . . . . . . . . . . . . . . 1 . . . . . . . Derelict Logs Recovered 8 | . . . . 2 . . . . . . . . 1 . 1 . . . 1 . . 2 . . . . . . 1 . . Drone Launches 10 | . . . . . . . . . . . . . . . . . . 6 . . . . 3 . . . . 1 . . . Drone Recoveries 10 | . . . . . . . . . . . . . . . . . . 6 . . . . 3 . . . . 1 . . . Exploration | -11 -10 -10 -9 -9 -9 -8 -8 -8 -8 -7 -7 -7 -7 -7 -7 -7 -6 -6 -6 -6 -6 -5 -5 -5 -5 -5 -5 -4 -4 -4 -4 ------------- Run | Yrd Mat Min Mat Min Exi Min Mat Gar Mat Fac Gar Fac Low Low Zio Dee Pro Fac Low Low Dat Pro Fac Ext Cet Arc Hub Fac Upp Upp War Turns Passed 30561 | 117 1595 329 1992 1476 686 289 940 1674 1631 614 1311 876 942 711 867 2698 693 1856 568 682 106 1373 593 1414 337 120 444 706 415 937 1569 Spaces Moved 17555 | 59 649 160 626 544 286 116 336 575 576 1570 1347 608 697 520 753 1639 388 1238 379 413 82 570 382 638 150 48 283 396 256 404 867 Core 10 | 3 . . . . . . . . . . . . . . . . . . . . . . . . . . . . . . 7 Treads 2960 | 56 12 . 459 544 286 116 336 575 576 . . . . . . . . . . . . . . . . . . . . . . Legs 11314 | . . . . . . . . . . . 610 608 697 520 753 1639 388 1238 379 413 82 570 382 638 150 48 283 396 256 404 860 Wheels 964 | . 637 160 167 . . . . . . . . . . . . . . . . . . . . . . . . . . . . Hover . | . . . . . . . . . . . . . . . . . . . . . . . . . . . . . . . . Flight 2307 | . . . . . . . . . . 1570 737 . . . . . . . . . . . . . . . . . . . . Fastest Speed 31 | 50 160 200 190 240 240 240 200 232 230 31 31 105 112 112 112 103 130 130 132 130 130 130 132 129 129 129 129 129 129 129 50 Average Speed 134 | 154 199 200 230 240 240 240 217 234 239 31 64 109 112 112 113 117 130 130 132 131 130 131 133 129 129 129 129 136 129 129 133 Slowest Speed 246 | 160 200 200 240 240 240 240 241 241 246 31 180 112 112 112 117 185 130 132 132 132 130 132 186 132 129 129 129 178 129 132 185 Overloaded Moves . | . . . . . . . . . . . . . . . . . . . . . . . . . . . . . . . . Propulsion Burnouts . | . . . . . . . . . . . . . . . . . . . . . . . . . . . . . . . . Robots Hopped 9 | . . . . . . . . . . 9 . . . . . . . . . . . . . . . . . . . . . Potential Cave-ins 4 | . . . . . . . . . . . . . . . . . . 2 . . . . . . . . . . . . 2 Cave-ins Triggered . | . . . . . . . . . . . . . . . . . . . . . . . . . . . . . . . . Exploration Rate (%) 54 | 4 88 50 56 82 69 22 37 61 42 34 87 17 67 65 85 80 48 37 60 49 69 76 10 84 67 72 40 13 48 56 77 Regions Visited 31 Branch Regions 20 Pre-discovered Areas 10 | . 2 . 1 . 1 . . . 1 . . . 1 . 1 . . . . . 1 . . 1 . . . . 1 . . Known Exits Taken 9 | . . . 1 . . . 1 . . 1 . 1 1 . . . . 1 . . . 1 . . . . 1 1 . . . Unknown Exits Taken 20 | 1 1 1 . 1 1 1 . . 1 . . . . 1 1 1 1 . 1 1 1 . 1 1 1 1 . . 1 1 . Scrap Searched 20 | . . . . 1 . 1 . . . . . . 2 2 1 . 3 . 5 . . 3 . . . . . . . 2 . Spaces Dug 197 | . 1 . . . . . . . . 18 1 11 21 3 . . . 22 9 9 . 3 2 . . . 14 6 24 51 2 Terrain Destroyed 757 | . 1 . . 96 . . . 11 . 23 85 59 51 12 . 6 13 78 19 28 . 8 8 35 12 1 27 41 27 68 48 Melee 41 | . . . . . . . . . . 18 1 9 13 . . . . . . . . . . . . . . . . . . Projectile 377 | . 1 . . . . . . . . . 3 12 26 12 . 6 13 37 19 28 . 8 8 17 12 1 27 25 27 68 27 AOE 339 | . . . . 96 . . . 11 . 5 81 38 12 . . . . 41 . . . . . 18 . . . 16 . . 21 Terrain Rammed . | . . . . . . . . . . . . . . . . . . . . . . . . . . . . . . . . Walls Destroyed . | . . . . . . . . . . . . . . . . . . . . . . . . . . . . . . . . Machines Disabled . | . . . . . . . . . . . . . . . . . . . . . . . . . . . . . . . . Actions | -11 -10 -10 -9 -9 -9 -8 -8 -8 -8 -7 -7 -7 -7 -7 -7 -7 -6 -6 -6 -6 -6 -5 -5 -5 -5 -5 -5 -4 -4 -4 -4 --------- Run | Yrd Mat Min Mat Min Exi Min Mat Gar Mat Fac Gar Fac Low Low Zio Dee Pro Fac Low Low Dat Pro Fac Ext Cet Arc Hub Fac Upp Upp War Total 22692 | 75 836 166 1027 638 287 123 476 774 723 1642 1651 741 780 601 769 2308 545 1400 420 489 81 1181 443 1173 269 96 321 491 304 764 1098 Wait 2991 | . 76 1 234 23 . 3 49 63 38 11 44 75 18 13 5 519 145 68 15 24 . 567 8 409 95 45 4 45 34 302 58 Move 17504 | 58 648 159 625 543 285 115 335 573 575 1551 1345 607 696 519 752 1638 387 1237 378 412 81 569 381 637 149 47 282 395 255 403 867 Hop 9 | . . . . . . . . . . 9 . . . . . . . . . . . . . . . . . . . . . Pick Up 209 | 6 25 . 28 8 1 1 16 4 7 9 16 5 1 3 2 17 . 3 6 1 . 4 15 6 4 . 2 2 . 12 5 Fast Attach 150 | 5 1 2 4 . . . 4 4 11 5 13 2 1 3 2 21 . 17 1 6 . 2 4 2 2 . 4 4 . 5 25 Attach 53 | 2 2 . 7 2 . . 5 2 5 2 1 1 . 2 . 10 . 2 . 1 . 1 3 . . . . . . 1 4 Detach 20 | . . . . . . . . . 3 1 2 . . . . 4 . 2 . . . . 1 . . . . 1 . 2 4 Swap 152 | . 11 . 22 12 . . 11 9 7 8 18 10 5 3 . 4 . 4 . 4 . 1 6 6 2 . 3 2 2 2 . Drop 297 | . 5 2 30 8 1 1 20 7 16 15 27 7 2 4 7 29 . 11 2 5 . 14 11 7 6 . 7 9 . 15 29 Fire 956 | 4 58 2 77 39 . 2 36 83 60 10 57 25 44 28 1 66 13 51 18 36 . 10 11 22 11 4 18 29 13 22 106 Melee 78 | . . . . . . . . . . 21 35 9 13 . . . . . . . . . . . . . . . . . . Ram . | . . . . . . . . . . . . . . . . . . . . . . . . . . . . . . . . Kick 10 | . . . . . . . . . . . . . . . . . . 2 . . . . 3 . . . 1 4 . . . Crush 5 | . . . . 3 . 1 . . 1 . . . . . . . . . . . . . . . . . . . . . . Escape Stasis 83 | . . . . . . . . 8 . . 62 . . . . . . 3 . . . . . 10 . . . . . . . Rewire 162 | . . . . . . . . 21 . . 28 . . 26 . . . . . . . 13 . 74 . . . . . . . Trap 13 | . 10 . . . . . . . . . 3 . . . . . . . . . . . . . . . . . . . . Miscellaneous . | . . . . . . . . . . . . . . . . . . . . . . . . . . . . . . . . Route ------- -11/Scrapyard -10/Materials (discovered 5 exits: *Mat x3 / *Min x2) -10/Mines -9/Materials (discovered 3 exits: *Mat / *Min x2) -9/Mines (discovered 2 exits: *Mat / *Exi) -9/Exiles -8/Mines (discovered 2 exits: *Mat x2) -8/Materials (discovered 2 exits: *Fac / Gar) -8/Garrison (discovered 2 exits: *Mat x2) -8/Materials -7/Factory (discovered 4 exits: *Sto / *Low x2 / Gar) -7/Garrison (discovered 3 exits: *Fac x3) -7/Factory (discovered 2 exits: Sto / *Low) -7/Lower Caves -7/Lower Caves (discovered 2 exits: *Fac / *Zio) -7/Zion (discovered 2 exits: [*Dee] / [*Pro]) -7/Deep Caves -6/Proximity Caves -6/Factory (discovered 6 exits: *Fac x4 / *Low x2) -6/Lower Caves -6/Lower Caves -6/Data Miner -5/Proximity Caves -5/Factory (discovered 6 exits: Fac x4 / *Upp / *Ext) -5/Extension (discovered 2 exits: *Fac / *Cet) -5/Cetus (discovered 2 exits: *Fac / [*Arc]) -5/Archives (discovered 2 exits: *Fac / *Hub) -5/Hub_04(d) -4/Factory (discovered 5 exits: *Res x2 / *Upp x2 / Arm) -4/Upper Caves -4/Upper Caves (discovered 2 exits: *Res / *War) -4/Warlord History --------- Turn | Location | Event 20 | -11/Scrapyard | Discovered new exit (range 15) 118 | -11/Scrapyard | Entered Materials 200 | -10/Materials | Discovered new exit (range 16) 314 | -10/Materials | Build established: Mutant 476 | -10/Materials | Discovered new exit (range 4) 738 | -10/Materials | Discovered new exit (range 16) 938 | -10/Materials | Build established: Scavenger-Mutant 1132 | -10/Materials | Repaired Lgt. Treads 1145 | -10/Materials | Discovered new exit (range 4) 1489 | -10/Materials | Discovered new exit (range 11) 1713 | -10/Materials | Entered Mines 1723 | -10/Mines | Met a Derelict bent on vengeance 2028 | -10/Mines | Discovered new exit (range 7) 2042 | -10/Mines | Entered Materials 2042 | -9/Materials | Evolved 2 slots: Utility x1, Weapon x1 2326 | -9/Materials | Identified exit to Mines 2495 | -9/Materials | Build established: Gunner 3342 | -9/Materials | Discovered new exit (range 7) 3536 | -9/Materials | Build established: Tank 4034 | -9/Materials | Entered Mines 4338 | -9/Mines | Received a Rocket Launcher from a helpful Derelict 4350 | -9/Mines | Assembled infested the area 4678 | -9/Mines | Build established: Scavenger-Tank 5047 | -9/Mines | Build established: Tank 5358 | -9/Mines | Met a Derelict shopkeep closing up shop 5426 | -9/Mines | Discovered new exit (range 11) 5431 | -9/Mines | Assisted by bots powering up and referring to "LRC-V3" 5498 | -9/Mines | Deemed a non-threat by the Exiles lab entrance 5498 | -9/Mines | Discovered new exit (range 5) 5510 | -9/Mines | Entered Exiles 5510 | -9/Exiles | Accompanied by 3 allies 5570 | -9/Exiles | Met 8R-AWN 5606 | -9/Exiles | Met EX-HEX 5702 | -9/Exiles | Met EX-DEC 5722 | -9/Exiles | Learned location of Zion (-7) 5851 | -9/Exiles | Met EX-BIN 5885 | -9/Exiles | Aligned with FarCom system 5887 | -9/Exiles | Given EX-Vault access code 5945 | -9/Exiles | Opened EX-Vault 5960 | -9/Exiles | Found Field Lobotomy Kit 6006 | -9/Exiles | Warned to stay clear of 0b10 Research branches 6165 | -9/Exiles | Discovered new exit (range 15) 6196 | -9/Exiles | Left Exiles lab with Field Lobotomy Kit 6196 | -9/Exiles | Entered Mines 6196 | -8/Mines | Accompanied by 3 allies 6296 | -8/Mines | Discovered new exit (range 7) 6419 | -8/Mines | Discovered new exit (range 10) 6485 | -8/Mines | Entered Materials 6485 | -8/Materials | Accompanied by 3 allies 6485 | -8/Materials | Evolved 2 slots: Propulsion x1, Utility x1 6541 | -8/Materials | Identified exit to Garrison 6863 | -8/Materials | Discovered new exit (range 8) 7059 | -8/Materials | Build established: Scavenger-Skirmisher 7425 | -8/Materials | Entered Garrison 7544 | -8/Garrison | Build established: Tank 7797 | -8/Garrison | Garrison Relay disabled 7979 | -8/Garrison | Triggered checkpoint 8003 | -8/Garrison | Triggered checkpoint 8176 | -8/Garrison | Discovered new exit (range 15) 8294 | -8/Garrison | Triggered checkpoint 8342 | -8/Garrison | Build established: Scavenger-Skirmisher 8434 | -8/Garrison | Garrison Relay disabled 8583 | -8/Garrison | Triggered checkpoint 8678 | -8/Garrison | Garrison Relay disabled 8867 | -8/Garrison | Attempted to access garrison exit controls, blocked by remote lockdown 9057 | -8/Garrison | Discovered new exit (range 14) 9099 | -8/Garrison | Entered Materials 9624 | -8/Materials | Build established: Skirmisher 10327 | -8/Materials | Core integrity fell below 50% 10375 | -8/Materials | Lost 3 parts (2u1w) 10412 | -8/Materials | Discovered new exit (range 10) 10631 | -8/Materials | Build established: Tank 10730 | -8/Materials | Entered Factory 10730 | -7/Factory | Accompanied by 1 ally 10730 | -7/Factory | Evolved 2 slots: Propulsion x1, Weapon x1 10731 | -7/Factory | Identified exit to Storage 10921 | -7/Factory | Identified exit to Lower Caves 11180 | -7/Factory | Garrison activated, responded to threat 11241 | -7/Factory | Build established: Sprinter 11344 | -7/Factory | Identified exit to Garrison 11344 | -7/Factory | Entered Garrison 11412 | -7/Garrison | Triggered checkpoint 11427 | -7/Garrison | Garrison Relay disabled 11573 | -7/Garrison | Triggered checkpoint 11597 | -7/Garrison | Triggered checkpoint 11632 | -7/Garrison | Triggered checkpoint 11633 | -7/Garrison | Triggered checkpoint 11715 | -7/Garrison | Garrison Relay disabled 11722 | -7/Garrison | Discovered new exit (range 9) 11767 | -7/Garrison | Discovered new exit (range 5) 11823 | -7/Garrison | Phase Generator disabled 11831 | -7/Garrison | Discovered new exit (range 3) 11840 | -7/Garrison | Found embedded Infiltrators 12171 | -7/Garrison | Build established: Scavenger-Gunner 12178 | -7/Garrison | Garrison Relay disabled 12202 | -7/Garrison | Triggered checkpoint 12550 | -7/Garrison | Garrison Relay disabled 12567 | -7/Garrison | Attempted to access garrison exit controls, blocked by remote lockdown 12655 | -7/Garrison | Entered Factory 12655 | -7/Factory | Accompanied by 1 ally 13055 | -7/Factory | First assault squad dispatched 13412 | -7/Factory | Discovered exit to Lower Caves (range 13) 13531 | -7/Factory | Entered Lower Caves 13537 | -7/Lower Caves | Met a Warlord Commander 13538 | -7/Lower Caves | Learned location of Warlord (-4) 13539 | -7/Lower Caves | Warlord Commander delivered Encrypted Comm Array 14192 | -7/Lower Caves | Identified exit to Lower Caves 14273 | -7/Lower Caves | Attracted the attention of an 0b10 outpost 14473 | -7/Lower Caves | Entered another Lower Caves area 14606 | -7/Lower Caves | Discovered new exit (range 16) 14871 | -7/Lower Caves | Destroyed 7 combat bots 15146 | -7/Lower Caves | Discovered new exit (range 14) 15184 | -7/Lower Caves | Entered Zion 15184 | -7/Zion | Accompanied by 2 allies 15218 | -7/Zion | System corruption cleaned by Quarantine Array 15247 | -7/Zion | Given the Hacking Drone Bay 15248 | -7/Zion | Found Prototype Device 15273 | -7/Zion | Discovered new exit (range 16) 15278 | -7/Zion | Acquired unknown access codes intercepted by a Zionite 15297 | -7/Zion | Received a visual enhancement algorithm 15425 | -7/Zion | Learned Factory emergency access door positions 15483 | -7/Zion | Learned location of Armory (-4) 15604 | -7/Zion | Learned Factory terminal intel 15974 | -7/Zion | Found Prototype Energy Gun 15974 | -7/Zion | Identified Storm Laser 16022 | -7/Zion | Opened final containment barrier to the Deep Caves 16041 | -7/Zion | Discovered new exit (range 3) 16041 | -7/Zion | Saw the warning signs outside the Deep Caves entrance 16051 | -7/Zion | Entered Deep Caves 16051 | -7/Deep Caves | Accompanied by 2 allies 16211 | -7/Deep Caves | Attacked by Z-Imprinter 16229 | -7/Deep Caves | Destroyed Z-Imprinter 16308 | -7/Deep Caves | Z-Facility disabled 16347 | -7/Deep Caves | Found Prototype Protection 16347 | -7/Deep Caves | Identified Zio. Weapon Casing 16350 | -7/Deep Caves | Found Zio. Weapon Casing 16432 | -7/Deep Caves | Found Zio. Weapon Casing 16566 | -7/Deep Caves | Spotted AG-42213 16569 | -7/Deep Caves | Core integrity fell below 50% 16608 | -7/Deep Caves | Destroyed AG-42213 16635 | -7/Deep Caves | Lost 3 parts (1p1n1u) 16820 | -7/Deep Caves | Found Zio. Weapon Casing 16904 | -7/Deep Caves | Build established: Scavenger-Mutant 16951 | -7/Deep Caves | Spotted AG-71925 16956 | -7/Deep Caves | Core integrity fell below 20% 16991 | -7/Deep Caves | Destroyed AG-71925 16995 | -7/Deep Caves | Found GOLEM Unit 17106 | -7/Deep Caves | Found Prototype Protection 17106 | -7/Deep Caves | Identified Zio. Heavy Carapace 17250 | -7/Deep Caves | Triggered Deep Caves wall 17250 | -7/Deep Caves | Spotted AS-46249 17250 | -7/Deep Caves | Spotted AS-87071 17257 | -7/Deep Caves | Destroyed AS-46249 17269 | -7/Deep Caves | Exposed GOLEM chamber 17280 | -7/Deep Caves | Destroyed AS-87071 17318 | -7/Deep Caves | Found GOLEM Unit 17335 | -7/Deep Caves | Destroyed 41 combat bots 17668 | -7/Deep Caves | Build established: Golem 17783 | -7/Deep Caves | Found GOLEM Unit 17812 | -7/Deep Caves | Found Cloak of Protection 17950 | -7/Deep Caves | Identified Hacking Drone Bay 18073 | -7/Deep Caves | Build established: Gunner 18548 | -7/Deep Caves | Build established: Scavenger-Gunner 18740 | -7/Deep Caves | Discovered new exit (range 7) 18749 | -7/Deep Caves | Entered Proximity Caves 19033 | -6/Proximity Caves | Spotted B-75 Beast 19288 | -6/Proximity Caves | Discovered new exit (range 15) 19442 | -6/Proximity Caves | Entered Factory 19442 | -6/Factory | Evolved 2 slots: Power x1, Utility x1 19444 | -6/Factory | Loaded intel: 26 terminal locations 19688 | -6/Factory | Discovered new exit (range 4) 19751 | -6/Factory | Build established: Scavenger-Skirmisher 19787 | -6/Factory | Identified exit to Lower Caves 20579 | -6/Factory | Identified exit to Factory 21007 | -6/Factory | Lost 3 parts (1p1u1w) 21298 | -6/Factory | Entered Lower Caves 21595 | -6/Lower Caves | Build established: Scavenger-Gunner 21775 | -6/Lower Caves | Learned Factory emergency access door positions 21853 | -6/Lower Caves | Discovered new exit (range 9) 21864 | -6/Lower Caves | Attracted the attention of an 0b10 checkpoint 21866 | -6/Lower Caves | Entered another Lower Caves area 22387 | -6/Lower Caves | Discovered new exit (range 13) 22401 | -6/Lower Caves | Found Alien Artifact 22401 | -6/Lower Caves | Identified Core Expander 22401 | -6/Lower Caves | Installed Core Expander, added new Propulsion slot 22548 | -6/Lower Caves | Entered Data Miner 22548 | -6/Data Miner | Discovered new exit (range 6) 22573 | -6/Data Miner | Met Data Miner 22598 | -6/Data Miner | Learned location of Section 7 (-2) 22598 | -6/Data Miner | Acquired the access code to Warlord's prototype stash 22620 | -6/Data Miner | Received God Mode back door access code from Data Miner 22654 | -6/Data Miner | Entered Proximity Caves 22658 | -5/Proximity Caves | Learned 4 Factory zone layouts 22746 | -5/Proximity Caves | Learned Factory stockpile data 22947 | -5/Proximity Caves | Unaware initiated a cargo recovery operation 23439 | -5/Proximity Caves | Discovered exit to Factory (range 3) 23752 | -5/Proximity Caves | Build established: Golem 24027 | -5/Proximity Caves | Entered Factory 24027 | -5/Factory | Evolved 2 slots: Utility x2 24028 | -5/Factory | Identified exit to Factory 24028 | -5/Factory | Identified exit to Upper Caves 24485 | -5/Factory | Central database locked down 24585 | -5/Factory | Discovered new exit (range 6) 24620 | -5/Factory | Entered Extension 24657 | -5/Extension | Rescued a captive Derelict 24658 | -5/Extension | Rescued a captive Derelict 24677 | -5/Extension | Rescued A7 24826 | -5/Extension | Rescued a captive Derelict 24829 | -5/Extension | Rescued a captive Derelict 24841 | -5/Extension | Rescued a captive Derelict 25104 | -5/Extension | Build established: Commander-Golem 25239 | -5/Extension | Spotted B-75 Beast 25251 | -5/Extension | Destroyed B-75 Beast 25262 | -5/Extension | Spotted B-75 Beast 25273 | -5/Extension | Destroyed B-75 Beast 25328 | -5/Extension | Rescued a captive Derelict 25329 | -5/Extension | Rescued a captive Derelict 25451 | -5/Extension | Rescued a captive Derelict 25454 | -5/Extension | Rescued a captive Derelict 25513 | -5/Extension | Learned 8 Factory zone layouts 25536 | -5/Extension | Rescued a captive Derelict 25584 | -5/Extension | Learned 4 Testing zone layouts 25644 | -5/Extension | Learned Quarantine trap positions 25696 | -5/Extension | Learned Armory trap positions 25738 | -5/Extension | Learned 2 Upper Caves zone layouts 25769 | -5/Extension | Loaded intel: 17 terminal locations 25791 | -5/Extension | Learned location of Quarantine (-3) 25825 | -5/Extension | Learned Armory emergency access door positions 25868 | -5/Extension | Learned Research trap positions 25922 | -5/Extension | Learned 4 Factory zone layouts 25944 | -5/Extension | Discovered exit to Factory (range 10) 25945 | -5/Extension | Discovered new exit (range 6) 26034 | -5/Extension | Entered Cetus 26034 | -5/Cetus | Accompanied by 21 allies (A7) 26039 | -5/Cetus | Acquired a Cetus Manufacturing Module code from A7 26057 | -5/Cetus | Spotted Cetus Guard 26060 | -5/Cetus | Spotted Cetus Guard 26062 | -5/Cetus | Allies destroyed Cetus Guard 26062 | -5/Cetus | Spotted Cetus Guard 26062 | -5/Cetus | Spotted Cetus Guard 26066 | -5/Cetus | Destroyed Cetus Guard 26067 | -5/Cetus | Allies destroyed Cetus Guard 26069 | -5/Cetus | Allies destroyed Cetus Guard 26098 | -5/Cetus | Lost 3 allies 26129 | -5/Cetus | Started Cetus Manufacturing Module 26139 | -5/Cetus | Escorted A7 to Cetus Mainframe 26154 | -5/Cetus | Manufactured an Enhanced Grunt 26156 | -5/Cetus | Discovered new exit (range 15) 26179 | -5/Cetus | Manufactured an Enhanced Grunt 26204 | -5/Cetus | Manufactured an Enhanced Grunt 26217 | -5/Cetus | Spotted Cetus Guard 26217 | -5/Cetus | Spotted Cetus Guard 26221 | -5/Cetus | Spotted Cetus Guard 26221 | -5/Cetus | Spotted Cetus Guard 26229 | -5/Cetus | Manufactured an Enhanced Grunt 26231 | -5/Cetus | Destroyed Cetus Guard 26240 | -5/Cetus | Allies destroyed Cetus Guard 26240 | -5/Cetus | Destroyed Cetus Guard 26243 | -5/Cetus | Allies destroyed Cetus Guard 26246 | -5/Cetus | Discovered exit to Factory (range 16) 26254 | -5/Cetus | Manufactured an Enhanced Grunt 26254 | -5/Cetus | Met Revision 17 26264 | -5/Cetus | Lost 3 allies 26371 | -5/Cetus | Entered Archives 26371 | -5/Archives | Accompanied by 18 allies (A7) 26376 | -5/Archives | Received a hacking code to weaken MAIN.C 26413 | -5/Archives | Lost 4 allies 26413 | -5/Archives | Discovered exit to Factory (range 15) 26425 | -5/Archives | Discovered new exit (range 14) 26491 | -5/Archives | Entered Hub_04(d) 26491 | -5/Hub_04(d) | Accompanied by 13 allies 26656 | -5/Hub_04(d) | Network Hub disabled 26656 | -5/Hub_04(d) | Network Hub disabled 26689 | -5/Hub_04(d) | Lost 6 allies 26831 | -5/Hub_04(d) | Discovered exit to Factory (range 15) 26854 | -5/Hub_04(d) | Network Hub disabled 26895 | -5/Hub_04(d) | Found Prototype Device 26897 | -5/Hub_04(d) | Lost 3 allies 26908 | -5/Hub_04(d) | Identified Exp. Thermal Shield 26935 | -5/Hub_04(d) | Entered Factory 26935 | -4/Factory | Evolved 2 slots: Utility x2 26936 | -4/Factory | Identified exit to Research 26957 | -4/Factory | Identified exit to Upper Caves 26957 | -4/Factory | Identified exit to Armory 27179 | -4/Factory | Build established: Scavenger-Golem 27306 | -4/Factory | Discovered exit to Research (range 14) 27641 | -4/Factory | Entered Upper Caves 27698 | -4/Upper Caves | Learned location of Testing (-2) 28049 | -4/Upper Caves | Discovered new exit (range 5) 28056 | -4/Upper Caves | Entered another Upper Caves area 28392 | -4/Upper Caves | Discovered exit to Research (range 15) 28578 | -4/Upper Caves | Found DCF Scrap (11 items) 28599 | -4/Upper Caves | Acquired the password to a Derelict Tinkerer's latest research 28632 | -4/Upper Caves | Discovered new exit (range 10) 28993 | -4/Upper Caves | Entered Warlord 29037 | -4/Warlord | System corruption cleaned by Quarantine Array 29322 | -4/Warlord | Learned Armory repair station intel 29322 | -4/Warlord | Learned Armory garrison access intel 29322 | -4/Warlord | Learned Research fabricator intel 29323 | -4/Warlord | Learned 4 Armory zone layouts 29323 | -4/Warlord | Learned 4 Research zone layouts 29323 | -4/Warlord | Learned 4 Quarantine zone layouts 29325 | -4/Warlord | Learned Testing trap positions 29325 | -4/Warlord | Learned Testing stockpile data 29412 | -4/Warlord | Opened Warlord's prototype stash 29423 | -4/Warlord | Found Prototype Device 29423 | -4/Warlord | Identified System Purifier 29427 | -4/Warlord | Found Prototype Processor 29427 | -4/Warlord | Identified Exp. Core Analyzer 29438 | -4/Warlord | Found Prototype Processor 29510 | -4/Warlord | Met Warlord 29535 | -4/Warlord | Warlord's base attacked by MAIN.C 29689 | -4/Warlord | Found Prototype Energy Cannon 29689 | -4/Warlord | Identified Vortex Driver 29692 | -4/Warlord | Found Prototype Energy Gun 29692 | -4/Warlord | Identified Vortex Shotgun 29702 | -4/Warlord | Found Vortex Shotgun 29885 | -4/Warlord | Warlord forces counterattacked 29946 | -4/Warlord | Spotted Striker 30020 | -4/Warlord | Lost 14 allies 30061 | -4/Warlord | Found Prototype Reactor 30061 | -4/Warlord | Identified Vortex Chain Reactor 30141 | -4/Warlord | Spotted Striker 30151 | -4/Warlord | Destroyed Striker 30159 | -4/Warlord | Spotted Executioner 30210 | -4/Warlord | Warlord base infiltrated, sounded retreat 30229 | -4/Warlord | Destroyed Executioner 30267 | -4/Warlord | Spotted Executioner 30280 | -4/Warlord | Spotted Striker 30285 | -4/Warlord | Destroyed Executioner 30289 | -4/Warlord | Spotted Executioner 30292 | -4/Warlord | Spotted Executioner 30294 | -4/Warlord | Destroyed Striker 30314 | -4/Warlord | Lost 8 allies 30335 | -4/Warlord | Spotted Executioner 30369 | -4/Warlord | Lost 7 parts (1p2n4w) 30371 | -4/Warlord | Found Prototype Processor 30371 | -4/Warlord | Identified Exp. Melee Analysis Suite 30382 | -4/Warlord | Found Prototype Launcher 30382 | -4/Warlord | Identified Chain Missile Launcher 30385 | -4/Warlord | Spotted Executioner 30397 | -4/Warlord | Spotted B-90 Cyclops 30401 | -4/Warlord | Spotted Striker 30402 | -4/Warlord | Found Prototype Ballistic Cannon 30402 | -4/Warlord | Identified Hvy. Autocannon 30442 | -4/Warlord | Lost 11 allies 30459 | -4/Warlord | Spotted Executioner 30464 | -4/Warlord | Found Prototype Device 30464 | -4/Warlord | Identified Adv. Kinecellerator 30469 | -4/Warlord | Core integrity fell below 50% 30475 | -4/Warlord | Spotted B-86 Titan 30481 | -4/Warlord | Spotted Executioner 30499 | -4/Warlord | Spotted Executioner 30503 | -4/Warlord | Destroyed B-86 Titan 30506 | -4/Warlord | Destroyed Executioner 30509 | -4/Warlord | Destroyed Executioner 30525 | -4/Warlord | Core integrity fell below 20% 30533 | -4/Warlord | Assimilated Executioner with FLK Orb 30536 | -4/Warlord | Lost 10 allies 30542 | -4/Warlord | Spotted B-90 Cyclops 30553 | -4/Warlord | Spotted Executioner 30559 | -4/Warlord | Released all parts (8) 30562 | -4/Warlord | Spotted B-86 Titan 30562 | -4/Warlord | Destroyed by Executioner with Helical Railgun Last Messages --------------- 30557_ Biometal Leg destroyed. 30558_ GOLEM Unit destroyed. 30559_ Slug penetrates Earth. 30559_ Released Asb. Alloy Leg. 30559_ Released Graphene Brace. 30559_ Released Asb. Combat Suite. 30559_ Released Asb. Biocell Array. 30559_ Released Lrg. Storage Unit. 30559_ Released Exp. Optical Array. 30559_ Released Cld. Fission Core. 30559_ Released Battle Cannon. 30559_ Acquired 64 matter. 30559_ Penetrated by Slug. 30559_ Slug penetrates Earth. 30559_ Penetrated by Slug. 30559_ Slug penetrates Earth. 30561_ Penetrated by Slug. 30561_ S-27 Virus destroyed. 30562_ The unstable cave ceiling collapses. 30562_ Penetrated by Slug. Map ----- +----------------------------------------------------+ | ## #??????????????????????????????????? | | #??????????????????????????????????? | | ######??????????????????????????????????? | | ?? ??????????????????????????????????? | | ?""" #?????????????????????????????????? | | ?""" #?????????????????????????????????? | | """ #?????????????????????????????????? | | """ #?????????????????????????????????? | | """ #?????????????????????????????????? | | #?????????????????????????????????? | | """ #?????????????????????????????????? | | ?""" #?????????????????????????????????? | | ?""" #?????????????????????????????????? | | ??"" #??????????????????????????? ?????? | | ??""?????????????????????????????g ????? | | ????????????????????????????????? ?????? | | ????????????????????????????##?? ??????? | | ?????????????????????? ???## ? ???????? | | ??????????????????????? ?? ?????#??? | | ??##??#????????????????? ### ????? ##? | | ?? ##""#????????????##??? #????? ?? | | ## ##""#???###?????# #???# ##???? ?? | | # ##""#???# ##### #?#### #???? #?? | | #?#""#?#### ## #### ### ##??? #?? | | ###""### ## # # ;; #??? ##? | | #[ ##"" / [ @ ;# ##?? #? | | == =""% =]!!* #### ### #?? | | "" [[%[! ### # #??? | | =[= =! == !!! = ;%%## #???? | | % ![%== !=[!!*[% % # / ##??? | | [![[= %%=| % =* % % " ?? | | %%[%=! %[=[* %% [ ! #" #??? | | !*=*%*[ % % # #??? | | =#[!*""* = = != = %[=s %# ### ##?? | | ![ ""[ =* # *%h ### #?? | | !!%"" * [ # [ # ## # Eh # # #?? | | ## ##"" # !=#= [ %# #?? | | #"" ## # ### #### #" # #?? | | # ##"""#######?## #???## ;; *%! ##?? | | #""##????????###????? ;; *%/% #??? | | # #""#???????????????? ### ##??? | | ###""????????????????# ???? " #???? | | ###?###????????????????# #?????#!% #???? | | ???????????????????????# ??????##] ##??? | | ????????????????????????? ??????## #??? | | ???????????????????????????????## #??? | | ???????????????????????????????# #??? | | ???????????????????????????????# #??? | | ???????????????????????????????# #??? | | ???????????????????????????????# #??? | +----------------------------------------------------+ Best States ------------- Heat Dissipation 107 Energy Generation 55 Energy Capacity 1700 Matter Stores 300 Matter Capacity 300 Sight Range 23 Robot Scan Range 16 Terrain Scan Range 20 Terrain Scan Density 10 Jamming Range 14 Cloak Strength 5 Power Amplification 20 Additional Mass Support 20 Base Temperature (-) 200 Armor Coverage 1200 Resistance: KI 15 Resistance: TH 15 Resistance: EX 15 Resistance: EM 15 Resistance: I 15 Resistance: S 15 Resistance: P 15 Weapon Shielding 100 Weapon Cycling 15 Phase Shifting 8 Evasion (%) 70 Targeting Accuracy 8 Core Analysis 8 Recoil Reduction 4 Particle Charging 25 Kinecelleration 50 Offensive Hacking 20 Authchip Count 1 Item Schematics ----------------- Assault Rifle | -9/Materials | Scanalyzed Imp. Flight Unit | -9/Materials | Scanalyzed Hacking Suite | -9/Materials | Scanalyzed Imp. System Shield | -7/Factory | Hacked Xenon Bombardment Thruster | -7/Factory | Scanalyzed Adv. VSS Leg | -7/Factory | Scanalyzed Hvy. Machine Gun | -7/Zion | Archive Flak Gun | -7/Zion | Archive Imp. Thermal Shield | -7/Zion | Archive System Restoration Module | -7/Zion | Archive Hvy. Flak Cannon | -7/Zion | Archive Powered Hammer | -7/Zion | Archive Lgt. Fission Core | -7/Zion | Archive Kinecellerator | -7/Zion | Archive Force Field | -7/Zion | Archive Transmission Jammer | -7/Zion | Archive Imp. Kinecellerator | -7/Zion | Archive Imp. Heavy Armor Plating | -7/Zion | Archive Hvy. Missile Launcher | -7/Zion | Archive Hrd. Heavy Armor Plating | -7/Zion | Archive Coil Gun | -7/Zion | Archive Flamer | -7/Zion | Free Barrage Gun | -7/Zion | Free Exp. Heat Sink | -6/Factory | Scanalyzed Combat Drone Bay | -6/Data Miner | Free Lgt. Regenerative Plating | -6/Data Miner | Free Enh. Armored Leg | -6/Data Miner | Free Imp. Matter Compressor | -6/Data Miner | Free Tesla Bomb Launcher | -6/Data Miner | Free Impulse Thruster | -6/Data Miner | Free Nanoactuators | -6/Data Miner | Free HERF Cannon | -6/Data Miner | Free Antigrav Array | -6/Data Miner | Free Gamma Bomb Array | -6/Data Miner | Free Energy Filter | -5/Extension | Hacked Robot Schematics ------------------ M-13 Machinist | -10/Materials | Hacked Y-45 Defender | -7/Factory | Hacked B-36 Bruiser | -7/Zion | Archive R-06 Scavenger | -7/Zion | Archive L-41 Fighter | -7/Zion | Archive H-77 Assassin | -7/Zion | Archive Y-64 Sentinel | -6/Data Miner | Free X-62 Marksman | -6/Data Miner | Free A-15 Conveyor | -6/Data Miner | Free E-15 Imp | -6/Data Miner | Free W-44 Eye | -6/Data Miner | Free L-61 Swordsman | -6/Data Miner | Free Fabricated ------------ Nothing Repaired ---------- Lgt. Treads | 15% | -10/Materials Studied --------- Wheel | -9/Materials | Hacked Lgt. Treads | -9/Materials | Hacked Assault Rifle | -9/Materials | Hacked Lgt. Assault Rifle | -9/Materials | Hacked Spread Laser | -9/Materials | Hacked Lgt. Cannon | -9/Materials | Hacked Mic. Nuclear Core | -7/Factory | Hacked Mni. Grenade Launcher | -7/Factory | Hacked Xenon Bombardment Thruster | -7/Factory | Hacked Great Axe | -7/Factory | Hacked Lgt. Deuterium Engine | -6/Factory | Hacked Thunder Leg | -5/Factory | Hacked Alien Tech Used ----------------- Core Expander Achievements -------------- King Drone That's One Door That Should Stay Closed Well-fed Force Field Challenges ------------ None Game ------ Seed PowerCannonPod Manual? 0 Play Time 06:17:01 Cumulative 210.2 hours Start 2026.01.09 @ 21:15:49 End 2026.01.15 @ 20:59:09 Sessions 21 Manual Loads 0 Difficulty Rogue Special Mode None Game No. 95 Rogue 90 Adventurer 5 Explorer 0 Win Type - Total 5 Types 3/0/0/1/0/0/0/0/0/1 Lore% 67 Gallery% 67 Achievement% 55 Wizard Run 0 Options --------- Layout 1 ASCII 0 Keyboard 0 Movement Numpad Keybinds 0 Fullscreen 1 Font 24/Smallcaps Map View 50x35 Zoom Use 0% Tactical HUD 1 Map Filters NONE Filters NONE Steam 1 RUN: a2db3c98-80e3-418e-abfd-7c07920385bc